{"text_format":"1","workbook":"xlsx","n_sheets":16,"sheets":["Welcome","LEA Instructions","SOP Instructions","Cover & Certifications","SOP Cover & Certifications","LEA Assurances & Certifications","SOP Assurances & Certifications","LEA Local & Regional Jails","Implementation Narrative","MOE Eligibility","CEIS & PSA","Section 611","Section 619","SOP Section 611","SOP Section 619","Prefills"],"not_rendered":{"charts":0,"images":4,"macros":1,"external_links":1,"defined_names":102,"comments":8,"pivot_tables":0},"unopened":[],"bounds":{"document_bytes":16777216,"sheet_cells":100000,"rows_first":2000,"rows_last":500,"rows_between":2000,"halvings":0,"cell_chars":16384,"cell_head_chars":4096},"cells_cut":0,"cells_raw":0,"read":"whole","date_system":"1900"}

{"sheet":"Welcome","index":0,"n_rows":20,"n_cols":2,"rows_kept":20,"cut":false,"hidden":false,"merged":[[3,0,3,10],[4,0,4,10],[9,1,9,7],[15,0,15,10],[19,0,19,10]]}
[]
[]
[]
[{"$f":"\"Welcome to the \"&Prefills!U2&\" Special Education Annual Plan/Part B Flow-Through Application in Excel.\"","v":"Welcome to the 2021-2022 Special Education Annual Plan/Part B Flow-Through Application in Excel."}]
["Please Select your entity name"]
[]
[]
[]
[]
[null,"ALEXANDRIA CITY PUBLIC SCHOOLS"]
[]
[]
[]
[]
[]
[]
[]
[]
[null,{"$f":"IF(ISBLANK(Welcome!B10),\" \",VLOOKUP($B$10,Prefills!$A$2:$D$153,4,FALSE))","v":"LEA"}]
["NOTE: Must Enable Macros to Proceed."]

{"sheet":"LEA Instructions","index":1,"n_rows":134,"n_cols":17,"rows_kept":134,"cut":false,"hidden":false,"merged":[[32,1,32,15],[34,1,34,15],[40,1,40,15],[43,2,43,15],[49,2,49,15],[47,1,47,15],[45,1,45,15],[54,2,54,15],[70,0,70,15],[68,1,68,15],[63,2,63,15],[61,3,61,15],[66,2,66,15],[65,2,65,15],[58,2,58,15],[59,2,59,15],[0,0,0,15],[22,0,22,15],[27,0,27,15],[30,0,30,15],[18,0,18,15],[19,0,19,15],[21,0,21,15],[20,0,20,15],[29,0,29,15],[76,7,76,9],[74,3,74,6],[72,0,72,15],[74,7,74,9],[74,10,74,15],[75,10,75,15],[76,10,76,15],[75,7,75,9],[75,0,76,2],[76,3,76,6],[75,3,75,6],[74,0,74,2],[79,0,79,2],[83,0,83,2],[81,3,81,6],[80,3,80,6],[77,3,77,6],[78,0,78,2],[78,3,78,6],[79,3,79,6],[81,7,81,9],[126,0,126,15],[115,1,115,15],[118,1,118,15],[84,10,84,15],[98,0,98,15],[85,10,85,15],[125,1,125,15],[84,3,84,6],[127,1,127,15],[94,0,94,15],[103,0,103,15],[112,1,112,15],[111,1,111,255],[112,97,112,111],[112,81,112,95],[112,113,112,127],[112,241,112,255],[112,193,112,207],[134,0,134,15],[112,49,112,63],[112,65,112,79],[124,1,124,15],[120,1,120,15],[122,1,122,15],[129,1,129,15],[133,1,133,15],[112,33,112,47],[112,17,112,31],[77,7,77,9],[77,10,77,15],[79,7,79,9],[79,10,79,15],[77,0,77,2],[116,1,116,15],[114,1,114,15],[107,1,107,15],[86,0,86,15],[85,7,85,9],[78,7,78,9],[100,0,100,15],[78,10,78,15],[82,3,82,6],[82,7,82,9],[82,10,82,15],[85,3,85,6],[83,3,83,6],[85,0,85,2],[87,0,87,15],[80,0,80,2],[109,1,109,15],[101,0,101,15],[104,0,104,15],[89,0,89,15],[81,0,82,2],[80,10,80,15],[83,7,83,9],[81,10,81,15],[83,10,83,15],[80,7,80,9],[132,0,132,15],[92,0,92,15],[105,0,105,15],[96,0,96,15],[131,1,131,15],[128,0,128,15],[113,1,113,15],[84,0,84,2],[84,7,84,9],[112,209,112,223],[112,225,112,239],[112,129,112,143],[112,145,112,159],[112,177,112,191],[112,161,112,175]]}
["Welcome to the 2021-2022 Special Education Annual Plan/Part B Flow-Through Application in Excel.  Please use the tabs at the bottom of this spreadsheet to work your way through the certifications, assurances, budget forms, and other required components.  Use your local personal computer to prepare the document for submission to the Virginia Department of Education via VDOE's Online Management of Education Grant Awards (OMEGA).  The OMEGA submission and all division-level approvals must be completed no later than  May 14 2021."]
[]
[]
[]
[]
[]
[]
[]
[]
[]
[]
[]
[]
["To print Annual Plan/Part B Flow-Through Application Document, please select this button:"]
[]
["To view Annual Plan/Part B Flow-Through Application Document by pages, click on "]
["\"Page Break Preview\" under View."]
[]
[]
[]
[" "]
["ANNUAL PLAN/PART B FLOW-THROUGH APPLICATION PROCESS "]
["All local educational agencies (LEAs), which include local school divisions, state-operated programs (SOPs), and the Virginia School for the Deaf and the Blind (VSDB), are required to establish their eligibility to receive funding under the Individuals with Disabilities Education Improvement Act of 2004 (IDEA).  IDEA, at 20 USC § 1413(a)(1), and its federal implementing regulations, at 34 CFR § 300.201, require that each LEA, in providing for the education of children with disabilities within its jurisdiction, has in effect policies, procedures, and programs that are consistent with the Virginia Department of Education's (VDOE's) policies and procedures, which have been established in accordance with the IDEA.  This Annual Plan/Part B Flow-Through Application is a component of the VDOE's overall responsibility to ensure each LEA's compliance with the implementation of the requirements of IDEA and its federal implementing regulations.  Links to the 2006 federal IDEA implementing regulations and the April 2007 and December 2008 revisions to the federal regulations are available online at:"]
["http://www.ed.gov/legislation/FedRegister/finrule/2006-3/081406a.pdf"]
["http://www2.ed.gov/legislation/FedRegister/finrule/2007-2/040907a.pdf",null,null,null,null,null,null,null,null,null,"(pages 17769-17774, and 17781)"]
["http://www.ed.gov/legislation/FedRegister/finrule/2008-4/120108a.pdf"]
[]
["Please refer also to the information outlined below, and the Superintendent's Memorandum No. 260-19, dated November 1, 2019, for additional information and contact assistance."]
[]
["A.   Submission of the Annual Plan/Part B Flow-Through Application using the OMEGA System:"]
["Each LEA must submit its Annual Plan/Part B Flow-Through Application using the Online Management of Grant Awards (OMEGA) System.  LEAs are requested to use the sequence of activities outlined below when completing and submitting their Annual Plan/Part B Flow-Through Application for approval.  For LEAs to be eligible to receive Part B funds the following components are required:  Excess Costs and Maintenance of Effort (MOE).  Information will be collected concerning Excess Costs using an automated Web-based application.  Projected Maintenance of Effort information will be collected within this application."]
[]
["1.","Verify completion of an \"OMEGA User Permission Form OP1\" - An OP1 Form must be on file with the VDOE's Fiscal Services Office for each person in the LEA's OMEGA approval queue for applications for Sections 611 or 619 funding.  If your LEA has previously submitted an OP1 Form and has been granted permission for each individual in the approval queue to either \"Create/Cancel,\" or to \"Approve/Deny\" an \"Application Request\" for \"Section 611\" and \"Section 619,\" then you are not required to submit new OP1 Forms.  However, if there are new staff members participating in the approval queue, please verify that an OP1 form, requesting the appropriate permissions, has been filed with the VDOE's Fiscal Services Office. "]
[]
[null,"Instructions for completing the OP1 Form and online training opportunities are available online at:   "]
[null,"http://www.doe.virginia.gov/school_finance/budget/grants_acct_reporting/omega/"]
[null,null,"Virginia Department of Education"]
[null,null,"Fiscal Services Office"]
[null,null,"P.O. Box 2120"]
[null,null,"Richmond, Virginia 23218-2120"]
[null,"Additional assistance regarding the OP1 Form may be obtained by telephone at (804) 371-0993 or by e-mail at: "]
[null,"omega.support@doe.virginia.gov"]
[]
[null,"NOTE:","If you are not a current user of the VDOE's Single Sign-on for Web Applications Systems (SSWS) portal, prior to submitting an OMEGA user permission form to VDOE, you must contact your local SSWS Coordinator, who will establish an SSWS \"user logon\" and access to OMEGA."]
[]
["2.","After completing all tabs below, the Annual Plan/Part B Flow-Through Application must be reviewed by the school division's local special education advisory committee, and approved by the school board prior to submission via OMEGA to VDOE for review and approval.  "]
[]
["3.","OMEGA Data Submission - Once the LEA's electronic 2021-2022 Annual Plan/Part B Flow-Through Application has been reviewed and approved, as outlined in Step 2 above, LEAs are requested to do the following:"]
[]
[null,"a.","Log in to the Virginia Department of Education's SSWS at the following Web site (NOTE:  The website suffix is \"do\" rather than \"doe\").    "]
[null,null,"https://p1pe.doe.virginia.gov/ssws/login.page.do"]
[]
[null,"b.","Select the Application Name \"Online Management of Education Grant Awards - OMEGA.\""]
[]
[null,"c.","On the left side of the OMEGA home page is a column entitled, \"I want to….\"  From that list, select \"Submit an application.\"  That will bring up OMEGA's \"Application Request Page.\""]
[]
[null,"d.","On the \"Application Request Page,\" the first step is to \"Choose the Award Year.\"  This will be  2021."]
[]
[null,"e.","The next question is \"Do you wish to submit a consolidated application?\"  The answer is \"Yes.\"  (Please note that failure to select \"Yes\" may delay approval of your Annual Plan/Part B Flow-Through Application.)"]
[null,"f.","Choose the Project Groups - If your LEA is applying for both Section 611 and Section 619 funding, then in OMEGA, under “Choose the Project Groups,” select BOTH “IDEA Part B Section 611 Special Education” and “IDEA Part B Section 619 – Special Education Preschool” as part of the SAME consolidated application. However, if  Section  611 is the ONLY funding stream for which your LEA is applying, under “Choose the Project Groups,” select ONLY “IDEA Part B Section 611 Special Education.\" "]
[]
[null,null,"NOTE: ","If you currently use OMEGA to submit ESSA applications, those funding streams may appear under \"Choose the Project Group.\"  Please be careful to select only the IDEA Part B selections, which are applicable to your Annual Plan/Part B Flow-Through Application.",null,null,null,null,null,null,null,null,null,null,null,null," "]
[]
[null,"g.","The next step is to \"Browse.\"  Selecting \"Browse\" will allow you to locate and attach the Excel file containing your saved, completed 2021-2022 Annual Plan/Part B Flow-Through Application."]
[]
[null,"h.","Once the file containing the Excel spreadsheet has been attached, select \"Go to Submit\" from the options at the bottom of the screen.  This will bring up a \"Confirmation Page.\"  The \"Confirmation Page\" will allow you to ensure that the file you uploaded is the appropriate file, and that you selected the appropriate \"Project Group(s).\"  Once you have verified that the information is ready for submission, select \"Submit Request.\""]
[null,"i.","Once the OMEGA application is submitted, it will be routed to the individual(s) within the LEA, who are authorized to approve OMEGA applications, and it will appear in the approvers' OMEGA \"To Do List.\"  The application must be approved by each required LEA-level approver before it will be submitted via OMEGA to VDOE for review.  At a minimum, at the LEA level, the OMEGA application must be approved by the individual authorized to provide \"Level 4\" approval, typically the Superintendent or other authorized designee."]
[]
["4.","To ensure a timely approval process, the electronic 2021-2022 Annual Plan/Part B Flow-Through Application must be uploaded via OMEGA, and all LEA-level approvals must be completed no later than  May 14, 2021."]
[]
["B.   Contact Information:"]
[]
["If you have any questions during the completion of your Annual Plan/Part B Flow-Through Application, please contact a VDOE staff member using the following information:"]
[]
["Plan Section",null,null,"Contact Person",null,null,null,"Telephone",null,null,"E-mail Address"]
["IDEA, Part B Annual Plan Certifications, Policy Statements, OMEGA submission and General Questions",null,null,"Tracie Coleman",null,null,null,"(804) 225-2704",null,null,"Tracie.Coleman@doe.virginia.gov"]
[]
["Special Education in Local and Regional Jail Programs",null,null,"Ellen Harrison",null,null,null,"(804)-225-2709",null,null,"Ellen.Harrison@doe.virginia.gov"]
["MOE Eligibility and PSA",null,null,"Shalonda Lewis",null,null,null,"(804)-225-2701",null,null,"Shalonda.Lewis@doe.virginia.gov"]
["Report on the Implementation of the 2018-2019 Plan",null,null,"Ella Barnes",null,null,null,"(804) 225-3161",null,null,"Ella.Barnes@doe.virginia.gov"]
["Submission Statement, GEPA Statement and Section 611 Application",null,null,"Ella Barnes",null,null,null,"(804) 225-3161",null,null,"Ella.Barnes@doe.virginia.gov"]
["Section 619 Application",null,null,"Samantha Tansey",null,null,null,"(804) 225-2910",null,null,"Samantha.Tansey@doe.virginia.gov"]
[null,null,null,"Dawn Hendricks",null,null,null,"(804) 225-2675",null,null,"Dawn.Hendricks@doe.virginia.gov"]
["Comprehensive Coordinated Early Intervening Services Plans",null,null,"Joseph Wharff",null,null,null,"(804) 225-4024",null,null,"Joseph.Wharff@doe.virginia.gov"]
["Coordinated Early Intervening Services Determination",null,null,"Jeffrey Phenicie",null,null,null,"(804)-786-0308",null,null,"Jeff.Phenicie@doe.virginia.gov"]
["OMEGA Submission Support and OP1 Form",null,null,"OMEGA Support",null,null,null,"(804) 371-0993",null,null,"OMEGA.Support@doe.virginia.gov"]
[]
["C.   Local Policies and Procedures:"]
[]
["Each LEA must provide assurances via its Annual Plan/Part B Flow-Through Application that its local policies and procedures are in compliance with the requirements of, and any revisions to, the IDEA, its federal implementing regulations, and Virginia's state special education regulations.  Approval of the electronic Annual Plan/Part B Flow-Through Application in OMEGA by the LEA's Level 4 approver serves as that assurance.  Thus, LEAs are not required to submit copies of their local policies and procedures, or revisions to those policies and procedures to the VDOE.  Nonetheless, LEAs are reminded that revisions to local special education policies and procedures must be approved by school boards for school divisions, or the Board of Visitors for the VSDB.  State-operated programs must submit revisions to policies and procedures to the State Special Education Advisory Committee for review.  A guidance document that provides technical assistance regarding those areas in which LEAs are required to have local special education policies and procedures is available online at:"]
["http://www.doe.virginia.gov/special_ed/regulations/state/developing_local_policies_procedures_guidance.pdf"]
[]
["D.   Private School Set-Aside Requirements:"]
[]
["Approval of the electronic Annual Plan/Part B Flow-Through Application in OMEGA by the LEA's Level 4 approver will provide assurance that each school division will comply with the 2006 federal IDEA implementing regulations regarding parentally-placed private school students, at 34 CFR 300.129 to 300.144. and Virginia's special education regulations at 8 VAC 20-81-150 C.  Nonetheless, each school division will be required to submit information demonstrating compliance with its proportionate set-aside (PSA) share of its Section 611 and Section 619 subgrant to provide services to the population.  This information is subject to review and public disclosure.  Preliminary PSA amounts should be included within this annual plan."]
[]
["Upon notification of its grant award, each school division must calculate the proportionate share amounts from its 611 and 619 subgrants to be spent on parentally-placed private school students.  These calculations will be submitted to the VDOE using the online Spec-ed PSA application.   If set-aside funds received in accordance with the 2021-2022 Annual Plan/Part B Flow-Through Application are not spent by the end of the 2021-2022 fiscal year, any remaining funds must be obligated for one additional year to provide special education and related services to children with disabilities who are parentally placed in a private school or are home schooled, and may not be used for other purposes.  The PSA funds may be reallocated for other uses after June 30, 2023.  Note:  A web-based application will be used to submit the information to the VDOE.  Additionally, school divisions will identify these expenditures in OMEGA."]
[]
["E.   Excess Costs and Maintenance of Effort Requirements:"]
[]
["Each school division must comply with requirement provisions of the 2006 federal IDEA implementing regulations, and the Virginia Regulations, at 8 VAC 20-81-260 B and C.   These local records are subject to review and public disclosure, including in the event of a financial audit, or if an applicable state complaint or due process action is filed.  Each school division will use the new web-based Excess Costs application to submit information to the VDOE to complete its Excess Cost calculations. The federal mandates regarding Maintenance of Effort are in the federal IDEA implementing regulations, at §§ 300.154(g)(2), and 300.203-300.205.  Preliminary Maintenance of Effort information is to be included with this annual plan.  The Level 4 (Superintendent or Authorized Designee) approval will ensure compliance with Excess Costs and Maintenance of Effort requirements. "]
["F.    Section 611 and Section 619 Grant Applications:"]
[]
["Grant awards will be issued upon receipt of funds from the U.S. Department of Education (USED) and the VDOE approval of the LEA’s Annual Plan/Part B Flow-Through Application.  Awards will be made upon a determination that the LEA has met all eligibility requirements of IDEA.  The amount of funds to be allocated to your LEA is based on a formula specified by the IDEA.                                                                                            "]
[]
["Additional Tips:"]
[]
["\u009f","Required components:  In order for your LEA to receive funding under Part B of IDEA, all sections of this application must be completed in accordance with federal and state funding requirements.  (LEAs not applying for Section 619 funding are not required to complete the tab entitled, \"Section 619.\")  "]
[]
["\u009f","Application Signature:  Approval by the LEA's Level 4 approver of this Annual Plan/Part B Flow-Through Application in OMEGA serves as an electronic signature for purposes of applying for federal funds.  "]
[]
["\u009f","Contact Information:  Please ensure the “Contact Person” identified in the application is available during the summer. "]
[]
["\u009f","Proposed Budget:  We recommend that you base your 2021-2022 proposed budget, for both Section 611 and Section 619, on the LEA's 2020-2021 grant award for each funding stream, as specified in Superintendent's Memorandums #182-20 dated July 17, 2020.  Please review both the proposed budget and the narrative budget description to ensure consistency."]
[]
["\u009f","Personnel:  For personnel to be paid from project funds, please clearly indicate percentages of salaries (FTEs) to be covered by Part B funds.  For personnel who do not spend 100 percent of their time serving children with disabilities, only the amount of time (i.e., percentage of salary and fixed charges) spent serving children with disabilities may be charged to Part B funds.  When employees are expected to work on a single Federal award or cost objective, the LEA must ensure that a semi-annual certification is made supporting the employees' salaries and wages.  When employees are expected to work on multiple projects the LEA must ensure that a monthly certification is made supporting the employee's salaries and wages."]
["\u009f","Equipment Purchases:  Approval for specific items of equipment is required for items costing $5,000 or more.  You must obtain approval of each equipment item prior to purchase.  For items not included in this application, approval must be obtained prior to purchase in accordance with the policies and procedures in effect at that time.  School divisions are expected to maintain an inventory of purchases costing less than $5,000 for items such as I-pads, computers, smartboards, library reference books, etc."]
[]
["\u009f","Indirect Costs:  Applicants are encouraged to consider budgeting for “indirect costs” (restricted rate).  Please consult with your LEAs chief financial officer for information pertinent to indirect costs and the restricted cost rate(s) computed for your LEA. "]
[]
["\u009f","Equipment/Travel:  Where equipment items and/or travel details are not known at the time this application is submitted, applicants may budget for equipment and travel and shall seek specific prior approval at a later date (prior to purchase or out-of-state travel)."]
[]
["\u009f","Capital Outlay:   Proposed expenditures for capital outlay, object code 8000, must be itemized.  These items would normally cost at least $5,000 per item."]
[]
["\u009f","Amendments:  Once the VDOE receives a federal grant award for Sections 611 and 619 funding, each LEA whose"]
[null,"Annual Plan/Part B Flow-Through Application has been received in substantially approvable form, and which continues to meet the eligibility requirements of Part B of IDEA, will receive sub-grant awards in accordance with federal and state funding requirements.  The amount of the sub-grant awards will be published in a Superintendent's Memorandum, and posted in OMEGA.  It is anticipated that the LEA's sub-grant award may differ from the proposed 611 or 619 budget amount submitted as part of the LEA's Annual Plan/Part B Flow-Through Application.  If so, the amount of the discrepancy will appear in OMEGA under Object Code 0000.  Select \"Change my object code budget\" to reallocate any funds in Object Code 0000 between the remaining Object Codes.  The LEA is not required to submit a revised Annual Plan/Part B Flow-Through Application to the VDOE via OMEGA to make this adjustment."]
["       "]
[null,"Following approval of the LEA's Annual Plan/Part B Flow-Through Application, if the LEA proposes to spend IDEA Part B funds differently than outlined in its Annual Plan/Part B Flow-Through Application, the amendment process will differ depending on the type of amendment requested.  To make a change to a proposed expenditure within the same object code, please send an e-mail message to the appropriate contact for the funding stream to be amended, outlining the proposed amendment.  VDOE staff will review the proposed change and notify you regarding whether or not it is approved or denied. To make a change to a proposed expenditure between object codes, transfer the funds using “Change my object code budget” in OMEGA, and insert a “justification” in the comment box.  The justification will be reviewed by VDOE staff, who will then either approve or deny the request via OMEGA.   Note that both amendment processes require VDOE approval of proposed expenditure changes, prior to the purchase of goods or services.  The LEA is not required to submit a revised Annual Plan/Part B Flow-Through Application to the VDOE via OMEGA to request an amendment."]
[]
["\u009f","Reimbursements:  The VDOE is responsible for assuring that federal special education funds are used in accordance with all applicable federal and state requirements.  Thus, reimbursement requests will be monitored closely to ensure compliance with such requirements.  If you have any questions about the appropriateness of a proposed use of these funds, please contact either Ella Barnes for Section 611 or Samantha Tansey or Ella Barnes for Section 619.  Their contact information is identified in section B above."]
[]
["\u009f","Technical Assistance Documents:  Additional technical assistance information regarding completion of the Annual Plan/Part B Flow-Through Application is available on the VDOE's website at: "]
["        http://www.doe.virginia.gov/special_ed/grants_funding/lea_annual_plan/object_codes.pdf"]
[null,"These documents provide guidance regarding object codes and the types of expenditures to be included under each object code, and suggestions for the appropriate use of early childhood special education funds."]

{"sheet":"SOP Instructions","index":2,"n_rows":144,"n_cols":11,"rows_kept":144,"cut":false,"hidden":true,"merged":[[133,1,133,15],[125,161,125,175],[139,1,139,15],[141,1,141,15],[128,1,128,15],[129,1,129,15],[130,1,130,15],[131,1,131,15],[135,1,135,15],[137,1,137,15],[122,1,122,15],[124,1,124,255],[127,1,127,15],[125,145,125,159],[125,225,125,239],[125,97,125,111],[125,113,125,127],[125,129,125,143],[125,193,125,207],[125,241,125,255],[125,209,125,223],[125,1,125,15],[125,17,125,31],[125,49,125,63],[125,65,125,79],[125,81,125,95],[125,33,125,47],[125,177,125,191],[0,0,0,15],[22,0,22,15],[27,0,27,15],[30,0,30,15],[18,0,18,15],[19,0,19,15],[29,0,29,15],[20,0,20,15],[79,0,79,15],[42,1,42,15],[45,2,45,15],[50,1,50,15],[54,2,54,15],[75,1,75,15],[67,3,67,15],[77,0,77,15],[73,2,73,15],[52,1,52,15],[59,2,59,15],[71,2,71,15],[63,2,63,15],[65,2,65,15],[47,1,47,15],[36,1,36,15],[32,1,32,15],[87,10,87,15],[85,0,85,2],[85,3,85,6],[85,7,85,9],[85,10,85,15],[84,0,84,2],[69,2,69,15],[34,1,34,15],[81,0,81,2],[101,1,101,15],[88,7,88,9],[88,10,88,15],[90,0,90,15],[99,1,99,15],[92,0,92,15],[95,0,95,15],[120,1,120,15],[114,0,114,15],[103,2,103,15],[105,2,105,15],[107,2,107,15],[109,2,109,15],[111,2,111,15],[116,0,116,15],[117,0,117,15],[118,0,118,15],[143,1,143,15],[142,1,142,15],[126,1,126,15],[81,7,81,9],[81,10,81,15],[82,3,82,6],[87,7,87,9],[81,3,81,6],[82,7,82,9],[82,10,82,15],[82,0,83,2],[83,3,83,6],[84,7,84,9],[84,10,84,15],[83,7,83,9],[83,10,83,15],[84,3,84,6],[86,0,87,2],[87,3,87,6],[97,1,97,15],[88,0,88,2],[88,3,88,6],[86,7,86,9],[86,3,86,6],[86,10,86,15]]}
["Welcome to the 2021-2022 Special Education Annual Plan/Part B Flow-Through Application in Excel.  Please use the tabs at the bottom of this spreadsheet to work your way through the certifications, assurances, budget forms, and other required components.  Use your local personal computer to prepare the document for submission to the Virginia Department of Education via VDOE's Online Management of Education Grant Awards (OMEGA).  The OMEGA submission and all SOP-level approvals must be completed no later than   May 14, 2021."]
[]
[]
[]
[]
[]
[]
[]
[]
[]
[]
[]
[]
["To print Annual Plan /Part B Flow-Through Application Document, please select this button:"]
[]
["To view Annual Plan/Part B Flow-Through Application Document by pages, click on "]
["\"Page Break Preview\" under View."]
[]
["GENERAL INSTRUCTIONS"]
["ANNUAL PLAN/PART B FLOW-THROUGH APPLICATION PROCESS "]
["2021-2022"]
[]
["All local educational agencies (LEAs), which include local school divisions, state-operated programs (SOPs), and the Virginia School for the Deaf and the Blind (VSDB), are required to establish their eligibility to receive funding under the Individuals with Disabilities Education Improvement Act of 2004 (IDEA).  IDEA, at 20 USC § 1413(a)(1), and its federal implementing regulations, at 34 CFR § 300.201, require that each LEA, in providing for the education of children with disabilities within its jurisdiction, has in effect policies, procedures, and programs that are consistent with the Virginia Department of Education's (VDOE's) policies and procedures, which have been established in accordance with the IDEA.  This Annual Plan/Part B Flow-Through Application is a component of the VDOE's overall responsibility to ensure each LEA's compliance with the implementation of the requirements of IDEA and its federal implementing regulations.  Links to the 2006 federal IDEA implementing regulations and the April 2007 and December 2008 revisions to the federal regulations are available online at:"]
["http://www.ed.gov/legislation/FedRegister/finrule/2006-3/081406a.pdf"]
["http://www2.ed.gov/legislation/FedRegister/finrule/2007-2/040907a.pdf",null,null,null,null,null,null,null,null,null,"(pages 17769-17774, and 17781)"]
["http://www.ed.gov/legislation/FedRegister/finrule/2008-4/120108a.pdf"]
[]
["Please refer also to the information outlined below, and the Superintendent's Memorandum No. 182-20, dated July 17, 2020, for additional information and contact assistance."]
[]
["A.  Submission of the Annual Plan/Part B Flow-Through Application using the OMEGA System:"]
["Each LEA must submit its Annual Plan/Part B Flow-Through Application using the Online Management of Grant Awards (OMEGA) System.  LEAs are requested to use the sequence of activities outlined below when completing and submitting their Annual Plan/Part B Flow-Through Application for approval.    "]
[]
["1.","Verify completion of an \"OMEGA User Permission Form OP1\" - An OP1 Form must be on file with the VDOE's Fiscal Services Office for each person in the LEAs OMEGA approval queue for applications for Sections 611 or 619 funding.  If your LEA has previously submitted an OP1 Form and has been granted permission for each individual in the approval queue to either \"Create/Cancel,\" or to \"Approve/Deny\" an \"Application Request\" for \"Section 611\" and \"Section 619,\" then you are not required to submit new OP1 Forms.  However, if there are new staff members participating in the approval queue, please verify that an OP1 form, requesting the appropriate permissions, has been filed with the VDOE's Fiscal Services Office. "]
[]
[null,"Instructions for completing the OP1 Form and online training opportunities are available online at:   "]
[null,"http://www.doe.virginia.gov/school_finance/budget/grants_acct_reporting/omega/"]
[null,"Please ensure that if applicable, new OP1 forms are completed and mailed to the following address no later than April 3, 2020."]
[]
[null,null,"Virginia Department of Education"]
[null,null,"Fiscal Services Office"]
[null,"  ","P.O. Box 2120"]
[null,null,"Richmond, Virginia 23218-2120"]
[null,"Additional assistance regarding the OP1 Form may be obtained by telephone at (804) 371-0993 or by email at: "]
[null,"OMEGA.support@doe.virginia.gov"]
[]
[null,"NOTE:","If you are not a current user of VDOE's Single Sign-on for Web Applications Systems (SSWS) portal, prior to submitting an OMEGA user permission form to VDOE, please contact OMEGA Support at (804) 371-0993 for assistance in establishing an SSWS \"user logon\" and access to OMEGA."]
[]
["2.","SOPs - After completing all tabs below, the Annual Plan/Part B Flow-Through Application for each SOP must be reviewed by the State Special Education Advisory Committee (SSEAC) prior to submission via OMEGA for review and approval by the VDOE. Therefore, no later than February 18, 2021, each SOP must submit their completed Annual Plan/Part B Flow-Through Application document, via e-mail, to Ms. Ella Barnes (see e-mail below) for distribution to the appropriate SSEAC members.  Following the SSEAC’s review, each SOP is requested to make any SSEAC-requested revisions, prior to submitting the final Excel document via OMEGA, as outlined below."]
[]
[]
[null,"VSDB - After completing all tabs below, the VSDB's Annual Plan/Part B Flow-Through Application must be reviewed and approved by its Board of Visitors.   After the Board of Visitors' approval, the plan must be reviewed by the State Special Education Advisory Committee (SSEAC) prior to submission via OMEGA for review and approval by VDOE.  Therefore, no later than February 18, 2021, VSDB must submit its completed Annual Plan/Part B Flow-Through Application document, via e-mail, to Ms. Ella Barnes at ella.barnes@doe.virginia.gov \nfor distribution to the appropriate SSEAC members.  Following the SSEAC’s review, VSDB will be requested to make any SSEAC-requested revisions, prior to submitting the final Excel document via OMEGA, as outlined below.\n\n"]
[]
["3.","OMEGA Data Submission - Once the LEAs electronic 2021-2022 Annual Plan/Part B Flow-Through Application has been reviewed and approved, as outlined in Step 2 above, LEAs are requested to do the following:"]
[]
[null,"a.","Log in to the Virginia Department of Education's SSWS at the following website (NOTE:  The website suffix is \"do\" rather than \"doe\").    "]
[null,null,"https://p1pe.doe.virginia.gov/ssws/login.page.do"]
[]
[null,"b.","Select the Application Name \"Online Management of Education Grant Awards - OMEGA.\""]
[]
[null,"c.","On the left side of the OMEGA home page is a column entitled, \"I want to….\"  From that list, select \"Submit an application.\"  That will bring up OMEGA's \"Application Request Page.\""]
[]
[null,"d.","On the \"Application Request Page,\" the first step is to \"Choose the Award Year.\"  This will be 2021."]
[]
[null,"e.","The next question is \"Do you wish to submit a consolidated application?\"  The answer is \"Yes.\"  (Please note that failure to select \"Yes\" may delay approval of your Annual Plan/Part B Flow-Through Application.)"]
[]
[null,"f.","Choose the Project Groups - If your LEA is applying for both Section 611 and Section 619 funding, then in OMEGA, under “Choose the Project Groups,” select BOTH “IDEA Part B Section 611 Special Education” and “IDEA Part B Section 619 – Special Education Preschool” as part of the SAME consolidated application. However, if  Section  611 is the ONLY funding stream for which your LEA is applying, under “Choose the Project Groups,” select ONLY “IDEA Part B Section 611 Special Education.\" "]
[]
[null,null,"NOTE: ","If you currently use OMEGA to submit ESSA applications, those funding streams may appear under \"Choose the Project Group.\"  Please be careful to select only the IDEA Part B selections, which are applicable to your Annual Plan/Part B Flow-Through Application."]
[]
[null,"g.","The next step is to \"Browse.\"  Selecting \"Browse\" will allow you to locate and attach the Excel file containing your saved, completed 2021-2022 Annual Plan/Part B Flow-Through Application."]
[]
[null,"h.","Once the file containing the Excel spreadsheet has been attached, select \"Go to Submit\" from the options at the bottom of the screen.  This will bring up a \"Confirmation Page.\"  The \"Confirmation Page\" will allow you to ensure that the file you uploaded is the appropriate file, and that you selected the appropriate \"Project Group(s).\"  Once you have verified that the information is ready for submission, select \"Submit Request.\""]
[]
[null,"i.","Once the OMEGA application is submitted, it will be routed to the individual(s) within the LEA, who are authorized to approve OMEGA applications, and it will appear in the approvers' OMEGA \"To Do List.\"  The application must be approved by each required LEA-level approver before it will be submitted via OMEGA to VDOE for review.  At a minimum, at the LEA level, the OMEGA application must be approved by the individual authorized to provide \"Level 4\" approval, typically the Superintendent or other authorized designee."]
[]
["4.","To ensure a timely approval process, the electronic 2021-2022 Annual Plan/Part B Flow-Through Application must be uploaded via OMEGA, and all LEA-level approvals must be completed no later than May 14, 2021."]
[]
["B.   Contact Information:"]
[]
["If you have any questions during the completion of your Annual Plan/Part B Flow-Through Application, please feel free to contact a VDOE staff member using the following information:"]
[]
["Plan Section",null,null,"Contact Person",null,null,null,"Telephone",null,null,"E-mail Address"]
["IDEA, Part B Annual Plan Certifications, Policy Statements, OMEGA submission and General Questions",null,null,"Tracie Coleman ",null,null,null,"(804) 225-2704",null,null,"Tracie.Coleman@doe.virginia.gov"]
[]
["Report on the Implementation of the 2017-2018 Plan",null,null,"Ella Barnes",null,null,null,"(804) 225-3161",null,null,"Ella.Barnes@doe.virginia.gov"]
["Submission Statement, GEPA Statement and Section 611 Application",null,null,"Ella Barnes",null,null,null,"(804) 225-3161",null,null,"Ella.Barnes@doe.virginia.gov"]
["Section 619 Application",null,null,"Samantha Tansey",null,null,null,"(804) 225-2910",null,null,"Samantha.Tansey@doe.virginia.gov"]
[null,null,null,"Dawn Hendricks",null,null,null,"(804) 225-2675",null,null,"Dawn.Hendricks@doe.virginia.gov"]
["OMEGA Submission Support and OPI Form",null,null,"OMEGA Support",null,null,null,"(804) 371-0993",null,null,"OMEGA.Support@doe.virginia.gov"]
[]
["C.   Local Policies and Procedures:"]
[]
["Each LEA must provide assurances via its Annual Plan/Part B Flow-Through Application that its policies and procedures are in compliance with the requirements of, and any revisions to, the IDEA, its federal implementing regulations, and Virginia's state special education regulations.  Approval of the electronic Annual Plan/Part B Flow-Through Application in OMEGA by the LEAs Level 4 approver serves as that assurance.  Thus, LEAs are not required to submit copies of their  policies and procedures, or revisions to those policies and procedures to the VDOE.  Nonetheless, LEAs are reminded that revisions to local special education policies and procedures must be approved by local school boards for local school divisions, or the Board of Visitors for the VSDB.  State-operated programs must submit revisions to policies and procedures to the State Special Education Advisory Committee for review.  A guidance document that provides technical assistance regarding those areas in which LEAs are required to have local special education policies and procedures is available online at:"]
["http://www.doe.virginia.gov/special_ed/regulations/state/developing_local_policies_procedures_guidance.pdf"]
[]
["D.   Additional Information"]
[]
["\u009f","Each SOP must submit its own individualized Annual Plan/Part B Flow-Through Application, completing all appropriate tabs below, ensuring it is submitted via OMEGA and fully approved by SOP-level approvers."]
[]
["\u009f","SOPs not serving pre-school age populations are not eligible for a Section 619 subgrant award. Therefore, those SOPs are not required to complete the \"SOP Section 619\" tab below."]
[]
["\u009f","The following sections of the Virginia Regulations do not apply to SOPs or the VSDB:"]
[]
[null,"Ø","Assurance of Free Appropriate Public Education Divisionwide – 8 VAC 20-81-30 B."]
[]
[null,"Ø","Child Find – 8 VAC 20-81-50"]
[]
[null,"Ø","Placement of Children at the Virginia School for the Deaf and the Blind at Staunton – 8 VAC 20-81-140"]
[]
[null,"Ø","Private School Placement – 8 VAC 20-81-150 C."]
[]
[null,"Ø","Federal Funds – 8 VAC 20-81-260 – B., C., D., G., H., and I."]
[]
[]
["E.   Section 611 and Section 619 Grant Applications"]
[]
["Grant awards will be issued upon receipt of funds from the U.S. Department of Education (USED) and VDOE approval of the LEA’s Annual Plan/Part B Flow-Through Application.  Awards will be made upon a determination that the LEA has met the entire eligibility requirements of IDEA.  The amount of funds to be allocated to your LEA is based on a formula specified by the IDEA."]
[]
["Additional Tips:"]
[]
["\u009f","Capital Outlay:   Proposed expenditures for capital outlay, object code 8000, must be itemized.  Items would routinely cost $5,000 each."]
[]
["\u009f","Application Signature:  Approval of the LEA's Level 4 approver of this Annual Plan/Part B Flow-Through Application in OMEGA serves as an electronic signature for purposes of applying for federal funds.  "]
[]
["\u009f","Contact Information:  Please ensure the “Contact Person” identified in the application is available during the summer. "]
[]
["\u009f","Proposed Budget:  We recommend that you base your 2021-2022 proposed budget, for both Section 611 and Section 619, on the LEA's 2020-2021 grant award for each funding stream, as specified in Superintendent's Memorandum  #182-20 dated July 17, 2020, for Section 611 and Section 619.  Please review both the proposed budget and the narrative budget description to ensure consistency."]
[]
["\u009f","Personnel:  For personnel to be paid from project funds, please clearly indicate percentages of salaries (FTEs) to be covered by Part B funds.  For personnel who do not spend 100 percent of their time serving children with disabilities, only the amount of time (i.e.,  percentage of salary and fixed charges) spent serving children with disabilities may be charged to Part B funds. When employees are expected to work on a single Federal award or cost objective, the LEA must ensure that a semi-annual certification is made supporting the employees' salaries and wages.  When employees are expected to work on multiple projects the LEA must ensure that a monthly certification is made supporting the employee's salaries and wages."]
[]
["\u009f","Equipment Purchases:  Approval for specific items of equipment is required for items costing $5,000 or more.  You must obtain approval of each equipment item prior to purchase.  For items not included in this application, approval must be obtained prior to purchase in accordance with the policies and procedures in effect at that time.  State Operated Programs are expected to maintain an inventory of purchases costing less than $5,000 for items such as I-pads, computers, smartboards, library reference books, etc."]
["\u009f","Indirect Costs:  Applicants are encouraged to consider budgeting for “indirect costs” (restricted rate).  Please consult with your LEAs chief financial officer for information pertinent to indirect costs and the restricted cost rate(s) computed for your LEA. "]
[]
["\u009f","Travel:  Where travel details are not known at the time this application is submitted, applicants may budget for travel and shall seek specific prior approval at a later date (prior to purchase or travel)."]
[]
["\u009f","Amendments:  Once the VDOE receives the federal grant award for Section 611 and 619 funding, each LEA whose Annual Plan/Part B Flow-Through Application has been received in substantially approvable form, and which continues to meet the eligibility requirements of Part B of IDEA, will receive sub-grant awards in accordance with federal and state funding requirements.  The amount of the sub-grant awards will be published in a Superintendent's Memorandum, and posted in OMEGA.  It is anticipated that the LEA's sub-grant award may differ from the proposed 611 or 619 budget amount submitted as part of the LEA's Annual Plan/Part B Flow-Through Application.  If so, the amount of the discrepancy will appear in OMEGA under Object Code 0000.  Select \"Change my object code budget\" to reallocate any funds in Object Code 0000 between the remaining Object Codes.  The LEA is not required to submit a revised Annual Plan/Flow-Through Application to VDOE via OMEGA to make this adjustment. "]
[]
[null,"Following approval of the LEA's Annual Plan/Part B Flow-Through Application, if the LEA proposes to spend IDEA Part B funds differently than outlined in its Annual Plan/Part B Flow-Through Application, the amendment process will differ depending on the type of amendment requested.  To make a change to a proposed expenditure within the same object code, please send an e-mail message to the appropriate contact for the funding stream to be amended, outlining the proposed amendment. VDOE staff will review the proposed change and notify you regarding whether or not it is approved or denied. To make a change to a proposed expenditure between object codes, transfer the funds using “Change my object code budget” in OMEGA, and insert a “justification” in the comment box.  The justification will be reviewed by VDOE staff, who will then either approve or deny the request via OMEGA.  Note that both amendment processes require VDOE approval of proposed expenditure changes, prior to the purchase of goods or services.  The LEA is not required to submit a revised Annual Plan/Flow-Through Application to VDOE via OMEGA to request an object code budget change."]
[]
["\u009f","Reimbursements:  The VDOE is responsible for assuring that federal special education funds are used in accordance with all applicable federal and state requirements.  Thus, reimbursement requests will be monitored closely to ensure compliance with such requirements.  If you have any questions about the appropriateness of a proposed use of these funds, please contact either Ella Barnes for Section 611 or Samantha Tansey or Ella Barnes for Section 619.  Their contact information is identified in section B above."]
[]
["\u009f","Technical Assistance Documents:  Additional technical assistance information regarding completion of the Annual Plan/Part B Flow-Through Application is available on the VDOE's website at:  \n\n\n\n"]
[null,"http://www.doe.virginia.gov/special_ed/grants_funding/lea_annual_plan/object_codes.pdf\n"]
[null,"These documents provide guidance regarding object codes, including  the types of expenditures to be included under each object code, and suggestions for the appropriate use of early childhood special education funds."]

{"sheet":"Cover & Certifications","index":3,"n_rows":86,"n_cols":17,"rows_kept":86,"cut":false,"hidden":false,"merged":[[38,0,38,6],[34,3,34,14],[36,8,36,11],[24,2,24,14],[33,1,33,10],[13,7,13,8],[14,9,14,10],[0,12,0,15],[20,1,20,14],[13,13,13,15],[13,1,13,2],[15,1,15,2],[14,1,14,2],[10,8,10,9],[9,9,9,15],[11,0,12,15],[13,9,13,10],[4,0,4,15],[15,5,15,15],[31,1,31,14],[33,11,33,14],[26,2,26,14],[28,1,28,14],[22,2,22,14]]}
[null,null,null,null,null,null,null,null,null,null,null,null,"Original",null,null,null,"<----Identify Version"]
["VIRGINIA DEPARTMENT OF EDUCATION"]
["DIVISION OF SPECIAL EDUCATION AND STUDENT SERVICES"]
[]
["Local Special Education Annual Plan/Part B Flow-Through Application and Report \n2021-2022"]
[]
[]
["Division and Contact Information - to be Completed by School Division"]
["Division Applicant Name (Legal Name of Agency)",null,null,null,null,null,null,"LEA",null,"Questions regarding this plan should be directed to:"]
[{"$f":"IF(ISBLANK(Welcome!B10),\" \",(Welcome!B10))","v":"ALEXANDRIA CITY PUBLIC SCHOOLS"},null,null,null,null,null,null,"Number",{"$f":"IF(ISBLANK(Welcome!B10),\" \",VLOOKUP($A$10,Prefills!$A$2:$C$153,2,FALSE))","v":101},"thresa A. Werner"]
["Mailing Address (Street, City or Town, Zip Code)",null,null,null,null,null,null,"DUNS",{"$f":"IF(ISBLANK(Welcome!$B$10),\" \",VLOOKUP($A$10,Prefills!$Y$2:$AA$136,2,FALSE))","v":"100079318"}]
["1340 Braddock Place Alexandria, VA 22314"]
[]
[null,null,null,null,null,null,null,"Phone (ext):",null,7033509803,null,null,"Fax:"]
[null,null,null,null,null,null,null,null,null,"Numbers Only",null,"Ext.",null,"Numbers Only"]
["Region:",{"$f":"IF(ISBLANK(Welcome!B$10),\" \",VLOOKUP($A$10,Prefills!$A$2:$D$153,3, FALSE))","v":4},null,null,"E-mail: ","theresa.werner@acps.k12.va.us"]
[]
["SUPERINTENDENT’S CERTIFICATION"]
[]
[]
[null,"For the purpose of implementing the provisions of the Individuals with Disabilities Education Improvement Act of 2004 (IDEA), I certify that throughout the period of the 2021-2023 grant award,  this School Division will comply with the requirements outlined in each of the following:"]
[]
[null,"(1)","Part B of IDEA, including the eligibility requirements of Section 613;"]
[]
[null,"(2)","The IDEA federal implementing regulations, dated October 13, 2006, and revised April 9, 2007, and December 31, 2008, at 34 C.F.R. Part 300 et seq.; and"]
[]
[null,"(3)","Virginia’s \"Regulations Governing Special Education Programs for Children with Disabilities in Virginia,\" at 8 VAC 20-81 et seq., effective January 25, 2010, and any revisions."]
[]
[null,"I certify that this school division has developed local policies and procedures for the provision of special education and related services, which are kept current, and which ensure compliance with the requirements of, and any revisions to the IDEA, its federal implementing regulations, and the Virginia Board of Education’s regulations."]
[]
[]
[null,"I certify that all students, including those who may be placed in regional programs by this agency, are afforded all assurances as delineated in this document."]
[]
[null,"Finally, I certify that this Annual Plan/Flow-Through Application for Part B Funds under the provisions of IDEA, was approved by the School Board on",null,null,null,null,null,null,null,null,null,"2021-05-06",null,null,null,"Date"]
[]
[]
[null,null,null,null,null,null,null,null,"2021-05-06",null,null,null,"Date"]
["Division Superintendent (Signature)"]
["Gregory C. Hutchings, Jr., Ed.D."]
["Typed Name"]
[null,"  "]
[]
[]
[]
[]
[]
[]
[]
[]
[]
[]
[]
[]
[]
[]
[]
[]
[]
[]
[]
[]
[]
[]
[]
[]
[]
[]
[]
[]
[]
[]
[]
[]
[]
[]
[]
[]
[]
[]
[]
[]
[]
["Certifications, Policy Statements, OMEGA submission and General Questions"]
[]
[]
["Submission Statement, GEPA Statement and Section 611 Application"]

{"sheet":"SOP Cover & Certifications","index":4,"n_rows":38,"n_cols":17,"rows_kept":38,"cut":false,"hidden":true,"merged":[[0,12,0,15],[19,1,19,14],[13,13,13,15],[13,1,13,2],[13,5,13,6],[15,1,15,2],[14,1,14,2],[4,0,4,15],[13,7,13,8],[36,0,36,6],[32,3,32,14],[9,9,9,15],[11,0,12,6],[11,7,12,15],[13,9,13,10],[14,5,14,6],[15,5,15,15],[31,1,31,10],[29,1,29,14],[34,8,34,11],[14,9,14,10],[23,2,23,14],[21,2,21,14],[31,11,31,14],[25,2,25,14],[27,1,27,14]]}
[null,null,null,null,null,null,null,null,null,null,null,null,"Original",null,null,null,"<----Identify Version"]
["VIRGINIA DEPARTMENT OF EDUCATION"]
["DIVISION OF SPECIAL EDUCATION AND STUDENT SERVICES"]
[]
["State Operated Program Annual Plan/Part B Flow-Through Application and Report\n2021-2022"]
[]
[]
["SOP and Contact Information - to be Completed by SOPs"]
["Applicant Name (Legal Name of  SOP)",null,null,null,null,null,null,"SOP",null,"Questions regarding this plan should be directed to:"]
[{"$f":"IF(ISBLANK(Welcome!B10),\" \",(Welcome!B10))","v":"ALEXANDRIA CITY PUBLIC SCHOOLS"},null,null,null,null,null,null,"Number",{"$f":"IF(ISBLANK(Welcome!B10),\" \",VLOOKUP($A$10,Prefills!$A$2:$C$153,2,FALSE))","v":101}]
["Mailing Address (Street, City or Town, Zip Code)",null,null,null,null,null,null,"Mailing Address  (If different than applicant address)"]
[]
[]
["Phone (ext):",null,null,null,"Fax:",null,null,"Phone (ext):",null,null,null,null,"Fax:"]
[null,"Numbers Only",null,"Ext.",null,"Numbers Only",null,null,null,"Numbers Only",null,"Ext.",null,"Numbers Only"]
[null,null,null,null,"Email: "]
[]
["DIRECTOR’S CERTIFICATION"]
[]
[null,"For the purpose of implementing the provisions of the Individuals with Disabilities Education Improvement Act of 2004 (IDEA), I certify that throughout the period of the 2021-2023 grant award,  this LEA will comply with the requirements outlined in each of the following, as applicable to State-Operated Programs (SOPs) and the Virginia School for the Deaf and the Blind at Staunton (VSDB):"]
[]
[null,"(1)","Part B of IDEA, including the eligibility requirements of Section 613;"]
[]
[null,"(2)","The IDEA federal implementing regulations, dated October 13, 2006 and revised April 9, 2007, and December 31, 2008, at 34 C.F.R. Part 300 et seq.; and"]
[]
[null,"(3)","Virginia’s \"Regulations Governing Special Education Programs for Children with Disabilities in Virginia\", at 8 VAC 20-81 et seq., effective January 25, 2010, and any revisions."]
[]
[null,"I certify that this LEA has developed local policies and procedures for the provision of special education and related services, which are kept current, and which ensure compliance with the requirements of, and any revisions to, the IDEA, its federal implementing regulations, and the Virginia Board of Education’s regulations."]
[]
[null,"I certify that this LEA’s  policies and procedures for the provision of special education and related services, and any revisions, were reviewed by the State Special Education Advisory Committee (SOP) or the Board of Visitors for the Virginia School for the Deaf and the Blind  (VSDB). "]
[]
[null,"Finally, I certify that this Annual Plan/Flow-Through Application for Part B Funds under the provisions of IDEA, was reviewed by the State Special Education Advisory Committee (SOP) or the Board of Visitors for the Virginia School for the Deaf and the Blind (VSDB) on ",null,null,null,null,null,null,null,null,null,null,null,null,null,"(Date)."]
[]
[]
[]
["Superintendent/SOP Director (Signature)",null,null,null,null,null,null,null,"Date"]
[]
["Typed Name"]

{"sheet":"LEA Assurances & Certifications","index":5,"n_rows":136,"n_cols":16,"rows_kept":136,"cut":false,"hidden":false,"merged":[[16,1,16,14],[6,0,6,15],[8,1,8,14],[10,1,10,14],[12,1,12,14],[14,1,14,14],[121,0,121,15],[110,1,110,15],[32,1,32,14],[79,1,79,15],[75,1,75,15],[88,1,88,15],[104,1,104,15],[90,1,90,15],[73,0,73,15],[55,1,55,14],[135,0,135,1],[135,2,135,15],[108,1,108,15],[106,1,106,15],[123,0,123,15],[84,1,84,15],[130,6,130,10],[94,1,94,15],[92,1,92,15],[95,1,95,15],[20,1,20,14],[26,1,26,14],[22,1,22,14],[18,1,18,14],[43,1,43,14],[49,1,49,14],[47,1,47,14],[45,1,45,14],[30,1,30,14],[28,1,28,14],[53,1,53,14],[24,1,24,14],[83,1,83,15],[86,1,86,15],[51,1,51,14],[81,1,81,15],[77,1,77,15],[34,1,34,14],[41,1,41,14]]}
[]
[null,"                                    ",null,"School Division:",null,null,{"$f":"T('Cover & Certifications'!$A$10:$G$10)","v":"ALEXANDRIA CITY PUBLIC SCHOOLS"},null,null,null,null,null,"Division Number:",null,null,{"$f":"'Cover & Certifications'!I$10","v":101}]
[]
["ANNUAL PLAN/PART B FLOW-THROUGH APPLICATION POLICY STATEMENTS"]
["(continued on next page)"]
[]
["This LEA assures that it has in effect policies, procedures, and programs which have been established and administered to comply with the IDEA, and its federal implementing regulations, including 34 CFR §§ 300.201-300.213, and which are consistent with the policies and procedures that VDOE has established in accordance with IDEA, and its federal implementing regulations, including 34 CFR §§ 300.101–300.163, and 300.165–300.174, to ensure each of the following:"]
[]
["\u0097","A free appropriate public education will be available for each child with disabilities, ages two to 21, inclusive."]
[]
["\u0097","All children, ages two to 21, inclusive, residing in the LEA who have disabilities and need special education and related services, who have not been parentally-placed in a private or home school, are identified, located, evaluated, and placed in an appropriate educational program."]
[]
["\u0097","An individualized education program (IEP) will be maintained for each child with a disability, as required."]
[]
["\u0097","To the maximum extent appropriate, children with disabilities will be educated with children who are nondisabled in the Least Restrictive Environment."]
[]
["\u0097","Children with disabilities and their parents or guardians are guaranteed procedural safeguards in the process of identification, evaluation, educational placement, or the provision of a free appropriate public education, including the right to access dispute resolution options."]
[]
["\u0097","Surrogate parents will be appointed, when appropriate, to act as advocates to serve the education interest of children, ages two to 21, inclusive, who are suspected of being or are determined to be disabled."]
[]
["\u0097","Testing and evaluative materials used for the purpose of classifying and placing children with disabilities are selected and administered so as not to be racially or culturally discriminatory."]
[]
["\u0097","The confidentiality of personally identifiable information, that is collected, maintained, or used under IDEA, shall be protected."]
[]
["\u0097","Children with disabilities, who are participating in Part C early intervention programs, and who will be participating in Part B preschool programs, will experience a smooth and effective transition between the programs."]
[]
["\u0097","All children, ages two to 21, inclusive, who have disabilities and need special education and related services, and who are parentally-placed in a private school or home school, that is located within the geographic boundaries of the LEA, are identified, located, evaluated and provided services, in accordance with the results of a timely and meaningful consultation process."]
[]
["\u0097","Homeless children with disabilities will be served in accordance with the requirements of the McKinney-Vento Homeless Assistance Act."]
[]
["\u0097","Special education and related service personnel, including paraprofessionals, are appropriately and adequately prepared and trained, and measurable steps will be taken to recruit, hire, train, and retain highly qualified personnel to provide special education and related services to children with disabilities."]
[]
["\u0097","Valid and reliable data is submitted to the VDOE, as requested, including  data regarding the performance goals and indicators established by the VDOE to determine the progress of children with disabilities, and the performance of the LEA toward targets outlined in Virginia’s State Performance Plan."]
[]
["\u0097","Policies and procedures will be in effect that are designed to prevent the inappropriate overidentification, underidentification, or disproportionate representation by race and ethnicity of children as children with disabilities, including children with disabilities with a particular impairment."]
[]
[null,"                                    ",null,"School Division:",null,null,{"$f":"T('Cover & Certifications'!$A$10:$G$10)","v":"ALEXANDRIA CITY PUBLIC SCHOOLS"},null,null,null,null,null,"Division Number:",null,null,{"$f":"'Cover & Certifications'!I$10","v":101}]
[]
["ANNUAL PLAN/FLOW-THROUGH APPLICATION POLICY STATEMENTS"]
[null,"  ",null,null,null,null,null,"(continued on next page)   "]
[]
["\u0097","Children with disabilities are not required to obtain prescription medication as a condition of attending school, receiving an evaluation, or receiving special education and related services."]
[]
["\u0097","Children with disabilities are given the right to participate in the state assessment system."]
[]
["\u0097","There will be ongoing parent consultation."]
[]
["\u0097","Funding will be used to develop and implement coordinated early intervening educational services, as required."]
[]
["\u0097","Children with disabilities who attend charter schools are provided services in the same manner as other children with disabilities who attend public schools."]
[]
["\u0097","Instructional materials will be provided to children with a visual impairment or other print disabilities in a timely manner."]
[]
["\u0097","Efforts will be made to cooperate with the United States Department of Education (USED) to ensure the linkage of records pertaining to migratory children with disabilities."]
[]
["\u0097","All documents relating to the LEA’s eligibility under IDEA will be made available to the public."]
[]
[]
[]
[]
[]
[]
[]
[]
[]
[]
[]
[]
[]
[null,"                                    ",null,"School Division:",null,null,{"$f":"T('Cover & Certifications'!$A$10:$G$10)","v":"ALEXANDRIA CITY PUBLIC SCHOOLS"},null,null,null,null,null,"Division Number:",null,null,{"$f":"'Cover & Certifications'!I$10","v":101}]
[]
["              SUBMISSION STATEMENT (continued on next page)"]
[]
["Under the provisions of the Individuals with Disabilities Education Improvement Act of 2004 (IDEA), and its federal implementing regulations, at 34 C.F.R. Part 300 et seq., a local educational agency, that desires to receive funds under the Act, must provide the following assurances:"]
[]
["1.","The local educational agency shall be responsible for (1) the control of funds provided under Part B of the Act; (2) title to property acquired with those funds; and (3) the local educational agency will administer such funds and property."]
[]
["2.","The local educational agency shall maintain records that show that where Part B funds are used to supplement existing services or to provide additional services to meet special needs, those services shall be at least comparable to services provided to other children with disabilities in the local educational agency with state and local funds."]
[]
["3.","The local educational agency application and all pertinent documents related to such application, including all evaluations and reports relative to the application, shall be made available for public inspection."]
[]
["4.","The local educational agency shall maintain records showing that Part B funds are used to supplement and, to the extent practicable, increase the level of state and local funds expended for the education of children with disabilities.  Part B funds shall, in no case, be used to supplant local and state funds."]
[]
["5.","The funds provided under Part B of the Act shall be used to employ only those professional personnel who meet appropriate State standards.  In addition, all other professional personnel employed, such as therapists, etc., shall be properly licensed."]
["6.","The Virginia Department of Education assumes rights to all materials and/or products developed in this project, including equipment purchased with Part B funds."]
[]
["7.","No person shall, on the grounds of race, color, national origin, sex, disabling condition or age, be excluded from participation in, be denied the benefits of, or be otherwise subjected to discrimination under any program or activity for which the applicant received financial assistance under the provisions of the Act."]
[]
["8.","The local educational agency shall provide students enrolled in private schools an opportunity to participate in programs funded through Part B of IDEA."]
[]
["9.","The local educational agency will ensure that projects involving construction, are consistent with overall State plans for the construction of school facilities.  In developing plans for construction, due consideration will be given to excellence of architecture and design and to compliance with standards prescribed under Section 504 of the Rehabilitation Act of 1973 and subsequent amendments in order to ensure that facilities constructed with the use of Federal funds are accessible to, and usable by, individuals with disabilities."]
[]
["10.","The local educational agency has adopted effective procedures for acquiring and disseminating to teachers and administrators participating in Part B programs significant information from educational research, demonstrations, and similar projects, and for adopting, where appropriate, promising educational practices developed through such projects."]
[]
["11.","The local educational agency will ensure that none of the funds expended under Part B programs will be used to acquire equipment (including computer software) in any instance in which such acquisition results in a direct financial benefit to any organization representing the interests of the purchasing entity or its employees or any affiliate of such an organization."]
["12.","Except when used to provide Comprehensive Coordinated Early Intervening Services or Coordinated Early Intervening Services, the local educational agency will ensure that funds expended under Part B of IDEA will only be used for the costs which are directly attributable to the education of children with disabilities, and which exceed the average annual per student expenditure during the preceding year as computed in accordance with 34 C.F.R. § 300.202, Appendix A of the IDEA federal implementing regulations, and as documented using the Web-based application. "]
[]
[null,"                                    ",null,"School Division:",null,null,{"$f":"T('Cover & Certifications'!$A$10:$G$10)","v":"ALEXANDRIA CITY PUBLIC SCHOOLS"},null,null,null,null,null,"Division Number:",null,null,{"$f":"'Cover & Certifications'!I$10","v":101}]
[]
["              SUBMISSION STATEMENT (continued from previous page)"]
[]
[]
[]
[]
["13.","The local educational agency will ensure that funds expended under Part B of IDEA will not be used to reduce the level of expenditures made from local funds below the amount expended for the education of children with disabilities from state or local funds during the preceding fiscal year, in accordance with 34 C.F.R. §§ 300.203 to 300.205 of the IDEA federal implementing regulations, and as documented using the web-based application."]
[]
["14.","The school division will ensure that,  in accordance with 34 C.F.R. § 300.133, and Appendix B of the IDEA federal implementing regulations, during the grant award period, a proportionate share of the school division’s Section 611 subgrant will be set aside to be expended for children with disabilities, ages 3 through 21, who are parentally-placed in a private school within the school division, and a proportionate share of its Section 619 subgrant will be set aside to be expended for children with disabilities, ages 3 through 5, who are parentally-placed in a private school within the school division.  This school division further assures that if it has not expended for equitable services all of its set-aside funds by the end of the fiscal year for which it was appropriated, the school division will obligate any remaining funds for one additional year to provide special education and related services to children with disabilities who are parentally placed in a private school within the school division.  Actual proportionate set-aside amounts will be submitted using the web-based application."]
[]
["15.","The local educational agency shall maintain records demonstrating compliance with the provisions of IDEA and its federal implementing regulations, including each of the assurances outlined above, and afford the Virginia Department of Education access to those records that it may find necessary to ensure the correctness and verification of the information required under this Act."]
[]
["16.","The local educational agency certifies this application as a material representation of its compliance with the following provisions of Education Department General Administrative Regulations (EDGAR), as applicable:  34 CFR Part 82 § 82.110—New Restrictions on Lobbying; 34 CFR Part 85 § 85.105 and § 85.110—Governmentwide Debarment and Suspension (Nonprocurement); and 34 CFR Part 84 §§ 84.200 through 84.230, and 84.300 – “Governmentwide Requirements for Drug-Free Workplace\" (Grants)."]
[]
[]
[]
[]
[]
[]
[]
[]
[null,null,null,null,null,null,{"$f":"T('Cover & Certifications'!$A$10:$G$10)","v":"ALEXANDRIA CITY PUBLIC SCHOOLS"},null,null,null,null,null,"Division Number:",null,null,{"$f":"'Cover & Certifications'!I$10","v":101}]
[]
["IDENTIFICATION OF BARRIERS AND DESCRIPTIONS OF \nSTEPS TO OVERCOME THEM IN ACCORDANCE\nWITH PROVISIONS IN SECTION 427 OF \nTHE GENERAL EDUCATION PROVISIONS ACT"]
[]
["Applicants for federal assistance are required under Section 427 of the General Education Provisions Act (GEPA), enacted as a part of the Improving America's Schools Act of 1994 (P.L. 103-382) to include in its application a description of the steps in addressing equity concerns and  full participation of students, teachers and other program beneficiaries with special needs in designing their federally-assisted projects or activities.  The legislation highlights six characteristics that describe broad categories of persons or groups that may more frequently encounter barriers to participation.  The characteristics are: Gender, Race, National Origin, Color, Disability, and Age. "]
[]
[]
[]
[null,"Equipment Purchases:  Approval for specific items of equipment is required for items costing $5,000.00 or more.  You must obtain approval of each equipment item prior to purchase.  For items not included in this application, approval must be obtained prior to purchase  in accordance with the policies and procedures in effect at that time.  School divisions are expected to maintain an inventory of purchases costing less than $5,000.00 for items such as I-pads, computers, smartboards, library reference books, etc."]
[]
[]
[null,null,null,"Choose One:",null,"x"," Division has no barriers"]
[]
[null,null,null,null,null,null," Division has barriers (Please provide explanation in the space provided)"]
[]
[]
["OTHER FACTORS THAT MIGHT LIMIT PARTICIPA- TION"]

{"sheet":"SOP Assurances & Certifications","index":6,"n_rows":72,"n_cols":17,"rows_kept":72,"cut":false,"hidden":true,"merged":[[58,0,58,2],[58,3,58,16],[33,2,33,16],[47,0,47,16],[49,0,49,16],[54,7,54,11],[33,0,33,1],[38,2,38,16],[37,2,37,16],[35,2,35,16],[35,0,35,1],[17,2,17,16],[19,2,19,16],[23,2,23,16],[21,2,21,16],[17,0,17,1],[21,0,21,1],[23,0,23,1],[25,2,25,16],[27,2,27,16],[0,4,0,5],[2,1,2,15],[4,1,4,16],[6,0,6,1],[8,0,8,1],[29,2,29,16],[25,0,25,1],[27,0,27,1],[29,0,29,1],[12,0,12,1],[10,0,10,1],[6,2,6,16],[8,2,8,16],[10,2,10,16],[12,2,12,16],[19,0,19,1],[15,2,15,16],[15,0,15,1],[14,0,14,1],[14,2,14,16]]}
[null,null,"                                         SOP:",null,"SOP:",null,null,{"$f":"T('Cover & Certifications'!$A$10:$G$10)","v":"ALEXANDRIA CITY PUBLIC SCHOOLS"},null,null,null,null,"SOP Number:",null,null,null,{"$f":"'SOP Cover & Certifications'!I$10","v":101}]
[]
[null,"SUBMISSION STATEMENT (continued on next page)"]
[]
[null,"Under the provisions of the Individuals with Disabilities Education Improvement Act of 2004 (IDEA), and its federal implementing regulations, at 34 C.F.R. Part 300 et seq., a local educational agency, that desires to receive funds under the Act, must provide the following assurances:"]
[]
["     1.     ",null,"The local educational agency shall be responsible for (1) the control of funds provided under Part B of the Act; (2) title to property acquired with those funds; and (3) the local educational agency will administer such funds and property."]
[]
["     2.     ",null,"The local educational agency shall maintain records that show that where Part B funds are used to supplement existing services or to provide additional services to meet special needs, those services shall be at least comparable to services provided to other children with disabilities in the local educational agency with state and local funds."]
[]
["       3.     ",null,"The local educational agency application and all pertinent documents related to such application, including all evaluations and reports relative to the application, shall be made available for public inspection."]
[]
["     4.     ",null,"The local educational agency shall maintain records showing that Part B funds are used to supplement and, to the extent practicable, increase the level of state and local funds expended for the education of children with disabilities.  Part B funds shall, in no case, be used to supplant local and state funds."]
[]
["5.     ",null,"The funds provided under Part B of the Act shall be used to employ only those professional personnel who meet appropriate State standards.  In addition, all other professional personnel employed, such as therapists, etc., shall be properly licensed."]
["6.     ",null,"The Virginia Department of Education assumes rights to all materials and/or products developed in this project, including equipment purchased with Part B funds."]
[]
["     7.     ",null,"No person shall, on the grounds of race, color, national origin, sex, disabling condition or age, be excluded from participation in, be denied the benefits of, or be otherwise subjected to discrimination under any program or activity for which the applicant received financial assistance under the provisions of the Act."]
[]
["     8.     ",null,"The policies, procedures, and programs established and administered by the state operated program shall meet eligibility requirements for assistance under this Act."]
[]
["     9.     ",null,"The local educational agency shall provide students enrolled in private schools an opportunity to participate in programs funded through Part B of IDEA where applicable."]
[]
["     10.     ",null,"The local educational agency will ensure that projects involving construction are consistent with overall State plans for the construction of school facilities.  In developing plans for construction, due consideration will be given to excellence of architecture and design and to compliance with standards prescribed under Section 504 of the Rehabilitation Act of 1973 and subsequent amendments in order to ensure that facilities constructed with the use of Federal funds are accessible to, and usable by, individuals with disabilities."]
[]
["11.     ",null,"The local educational agency has adopted effective procedures for acquiring and disseminating to teachers and administrators participating in Part B programs significant information from educational research, demonstrations, and similar projects, and for adopting, where appropriate, promising educational practices developed through such projects."]
[]
["12.     ",null,"The local educational agency will ensure that none of the funds expended under Part B programs will be used to acquire equipment (including computer software) in any instance in which such acquisition results in a direct financial benefit to any organization representing the interests of the purchasing entity or its employees or any affiliate of such an organization."]
[]
["     13.     ",null,"Except when used to provide Comprehensive Coordinated Early Intervening Services or Coordinated Early Intervening Services, the local educational agency will ensure that funds expended under Part B of IDEA will only be used for the costs which are directly attributable to the education of children with disabilities, and which exceed the average annual per student expenditure during the preceding year as computed in accordance with 34 C.F.R. § 300.202, Appendix A of the IDEA federal implementing regulations."]
[]
[]
[]
["     14.          ",null,"The local educational agency will ensure that funds expended under Part B of IDEA will not be used to reduce the level of expenditures made from local funds below the amount expended for the education of children with disabilities from state or local funds during the preceding fiscal year, in accordance with 34 C.F.R. §§ 300.203 to 300.205 of the IDEA federal implementing regulations."]
[]
["     15.          ",null,"The local educational agency shall maintain records demonstrating compliance with the provisions of IDEA and its federal implementing regulations, including each of the assurances outlined above, and afford the Virginia Department of Education access to those records that it may find necessary to ensure the correctness and verification of the information required under this Act."]
[]
[null,null,"  "]
[]
[]
[]
[]
[]
[]
[]
[null,null,"                                                           SOP:",null,null,null,null,{"$f":"T('Cover & Certifications'!$A$10:$G$10)","v":"ALEXANDRIA CITY PUBLIC SCHOOLS"},null,null,null,null,null,"SOP Number:",null,null,{"$f":"'SOP Cover & Certifications'!I$10","v":101}]
[]
["IDENTIFICATION OF BARRIERS AND DESCRIPTIONS OF \nSTEPS TO OVERCOME THEM IN ACCORDANCE\nWITH PROVISIONS IN SECTION 427 OF \nTHE GENERAL EDUCATION PROVISIONS ACT"]
[]
["Applicants for federal assistance are required under Section 427 of Title II, the General Education Provisions Act (GEPA), enacted as a part of the No Child Left Behind Act of 2001 amendments to the Elementary and Secondary Education Act of 1965, to address equity concerns that may affect full participation of potential program beneficiaries (teachers, students or parents) in designing their federally-assisted projects.  Section 427 requires identification of barriers to full participation, if any, and a description of steps taken, or that will be taken to overcome them.  The legislation highlights six characteristics that describe broad categories of persons or groups that may more frequently encounter barriers to participation.  The characteristics are: Gender, Race, National Origin, Color, Disability, and Age."]
[]
[]
[]
[]
[null,null,null,null,"Choose One:",null,null," Division has no barriers"]
[]
[null,null,null,null,null,null,null," Division has barriers (Please provide explanation in the space provided)"]
[]
["OTHER FACTORS THAT MIGHT LIMIT PARTICIPA- TION"]
[]
[]
[]
[]
[]
[]
[]
[]
[]
[]
[]
[]
["Submission Statement, GEPA Statement and Section 611 Application"]

{"sheet":"LEA Local & Regional Jails","index":7,"n_rows":86,"n_cols":16,"rows_kept":86,"cut":false,"hidden":false,"merged":[[20,1,20,4],[2,0,2,15],[16,13,16,14],[16,2,16,12],[18,1,18,14],[4,1,4,14],[8,1,8,14],[9,1,9,14],[11,13,11,14],[11,2,11,12]]}
[null,"                                         School Division:",null,null,null,null,{"$f":"T('Cover & Certifications'!$A$10:$G$10)","v":"ALEXANDRIA CITY PUBLIC SCHOOLS"},null,null,null,null,null,"Division Number:",null,null,{"$f":"'Cover & Certifications'!I$10","v":101}]
[null,null,null,null,null,null,null,null,null,null,null,null,null,"Region",null,{"$f":"'Cover & Certifications'!B$16","v":4}]
["2021-2022 SPECIAL EDUCATION IN LOCAL AND REGIONAL JAILS"]
[]
[null,"Each local school division with a regional or local jail in its jurisdiction shall establish an interagency agreement with the sheriff or jail administrator responsible for the operation of the jail.  The interagency agreement shall address staffing and security issues associated with the provision of special education and related services in the jail.  It is suggested that you review your agreement annually."]
[]
["Interagency Agreement"]
[]
[null,"Name of Local or Regional Jail:"]
[null,"Alexandria Detention Center"]
[]
[null,"1.","Is there a local or regional jail located within the geographic boundaries of your school division?",null,null,null,null,null,null,null,null,null,null,"yes"]
[]
[null,null,{"$f":"IF(N12=\"Yes\",\"Please complete question 2\",\"\")","v":"Please complete question 2"}]
[null,null,{"$f":"IF(N12=\"No\",\"You have completed the special education in jails section of the annual plan.\",\"\")","v":""}]
[]
[null,"2.","Has the interagency agreement between your school division and the jail been revised since the submission of your most recent annual plan?",null,null,null,null,null,null,null,null,null,null,"no"]
[]
[null,{"$f":"IF(N17=\"Yes\",\"Submit your revised Interagency Agreement with the 2019-2020 annual plan,\n via the SSWS drop box, to Ellen Harrison.\",IF(N17=\"No\",\"Your existing Interagency Agreement will remain in effect until revisions are made, you do not need to submit it\",\"\"))","v":"Your existing Interagency Agreement will remain in effect until revisions are made, you do not need to submit it"}]
[]
[null,"Instructions for Using drop box"]
[]
[]
[]
[]
[]
[]
[]
[]
[]
[]
[]
[]
[]
[null,"Instructions for completing the OP1 Form and online training opportunities are available online at:   "]
[]
[]
[]
[]
[]
[null,"  "]
[]
[]
[]
[]
[]
[]
[]
[]
[]
[]
[]
[]
[]
[]
[]
[]
[]
[]
[]
[]
[]
[]
[]
[]
[]
[]
[]
[]
[]
[]
[]
[]
[]
[]
[]
[]
[]
[]
[]
[]
[]
["Certifications, Policy Statements, OMEGA submission and General Questions"]
[]
[]
["Submission Statement, GEPA Statement and Section 611 Application"]

{"sheet":"Implementation Narrative","index":8,"n_rows":83,"n_cols":16,"rows_kept":83,"cut":false,"hidden":false,"merged":[[13,11,13,14],[12,11,12,14],[4,1,4,13],[2,0,2,15],[10,1,10,12],[10,13,10,14],[7,1,8,13],[5,1,6,13]]}
[null,null,null,"School Division:",null,null,{"$f":"T('Cover & Certifications'!$A$10:$G$10)","v":"ALEXANDRIA CITY PUBLIC SCHOOLS"},null,null,null,null,null,"Division Number:",null,null,{"$f":"'Cover & Certifications'!I$10","v":101}]
[]
["REPORT ON IMPLEMENTATION\nOF THE 2019-2020 ANNUAL PLAN"]
[]
[null,"Submit a report indicating the extent to which the annual plan for the 2019-2020 school year has been implemented (Code of Virginia, Section 22.1-215). (Maximum capacity of each text box is 975 characters.)"]
[]
[]
[null,"The activities for the 2019-20 and 2020-21 IDEA grant were on schedule to be fully implemented by 30 June 2021 prior to the COVID-19 closure of schools. This closure necessitated the provision of some services in a virtual format.  Prior to closure,  the funds were used to fund both Central Office Administrative and Instructional Support positions as well as school based positions.  Special Education services across the continuum, from pre-school to post seconday transition programs, were supported.  In order to enhance teaching and learning, focus areas continue to be co-teaching, use of specially desgined instructional strategies and targeted academic intevention programs coupled with ongoing progress monitoring.  These initiative areas continue to be the focus of the work carried out by the Office of Specialized Instruction.  Coaching and modeling of effective co -teaching continues as well.  Customized professional development was provided to teachers of students in city-wide programs in order to enhance their practices. "]
[]
[]
[null,"The school division used Part B funds from the 2009-2010 grant award to implement coordinated early intervening services."]
[null,{"$f":"IF(N11=\"Yes\",\"Please complete the information below\",\"\")","v":""}]
[null,"Total Expenditures"]
[null,"Total Number of Students Served"]
[]
[]
[]
[]
[]
[]
[]
[]
[]
[]
[]
[]
[null,null,"Virginia’s “Regulations Governing Special Education Programs for Children with Disabilities in Virginia\", at 8 VAC 20-81 et seq., effective January 25, 2010, and any revisions."]
[]
[]
[]
[]
[]
[]
[]
[null,"Instructions for completing the OP1 Form and online training opportunities are available online at:   "]
[]
[]
[]
[]
[]
[null,"  "]
[]
[]
[]
[]
[]
[]
[]
[]
[]
[]
[]
[]
[]
[]
[]
[]
[]
[]
[]
[]
[]
[]
[]
[]
[]
[]
[]
[]
[]
[]
[]
[]
[]
[]
[]
[]
[]
[]
[]
[]
[]
["Certifications, Policy Statements, OMEGA submission and General Questions"]

{"sheet":"MOE Eligibility","index":9,"n_rows":28,"n_cols":16,"rows_kept":28,"cut":false,"hidden":false,"merged":[[22,0,22,10],[27,0,27,15],[24,0,25,14],[19,2,19,5],[19,7,19,11],[21,0,21,14],[23,0,23,14],[3,0,3,4],[15,2,15,5],[15,7,15,11],[11,2,11,4],[11,8,11,10],[5,0,5,14],[7,0,7,14],[9,0,9,14]]}
[]
["                               School Division:",null,null,null,null,{"$f":"T('Cover & Certifications'!$A$10:$G$10)","v":"ALEXANDRIA CITY PUBLIC SCHOOLS"},null,null,null,null,null,"Division Number:",null,null,null,{"$f":"'Cover & Certifications'!I$10","v":101}]
[]
["Maintenance of Effort"]
[]
["The Virginia Department of Education (VDOE) is required by federal regulation to ensure all school divisions in Virginia comply with §300.203 of the Individuals with Disabilities Education Act (IDEA), which mandates that school divisions meet a maintenance of effort (MOE) obligation.  This regulation requires school divisions to spend at least the same amount from at least one of the following sources: (i) local funds; (ii) state plus local funds; (iii) local per capita; or (iv) state plus local per capita for a current school year on the delivery of special education and related services, as were spent for the most recent fiscal year (i.e.g, 2018 - 2019) for which the information is available, subject to the Subsequent Years rule."]
[]
["34 CFR §300.203(a) requires that in order for an LEA to be eligible for an IDEA Part B subgrant for the upcoming fiscal year, the LEA must budget, in each subsequent year, at least the same amount that it actually spent for the education of children with disabilities in the most recent fiscal year for which information is available, subject to the Subsequent Years rule.  When establishing eligibility, an LEA is not required to use the same method it used to meet compliance standard in the most recent fiscal year for which the information is available.  An LEA can change methods to establish eligibility from one year to the next, as long as the division uses the same method for calculating the amount it spent in the comparison year for which it is establishing eligibility."]
[]
["Provide the total local and the total state plus local expenditure budget and per capita amount for the school division's total special education program for the years designated below.  The projected/estimated expenditure budget amounts provided must come from the district's 2021-2022 preliminary budget, and must be reviewed and confirmed by the division's fiscal's office.              \n"]
[]
[null,null,"Local",null,null,null,null,null,"Local plus State"]
[]
[null,null,"School Year 2021-2022 ",null,null,null,null,"School Year 2021-2022 "]
[null,null,"(estimated/projected)",null,null,null,null,"(estimated/projected)"]
[null,"Dollar  $",30105218,null,null,null,"Dollar  $",32450706]
[]
[null,null,"School Year 2021-2022 ",null,null,null,null,"School Year 2021-2022 "]
[null,null,"(estimated/projected)",null,null,null,null,"(estimated/projected)"]
[null,"Per Capita",16771.71,null,null,null,"Per Capita",18078.39]
[]
["If an LEA determines that the budget above did not meet the  eligibility standard in any of the four methods for which the information is available,  an LEA is allowed to consider Exceptions under §300.204 and Adjustments to MOE under §300.205 to the extent the information is available.  These exceptions and adjustments must also be taken in the intervening year (i.e., SY2020-2021) and that the LEA reasonably expect to take these exceptions and adjustments in the year it is budgeting (i.e., SY2021-2022).  Please describe which allowable exceptions will be used and provide the corresponding dollar amount.  For additional guidance, refer to:"]
["http://www.doe.virginia.gov/special_ed/grants_funding/index.shtml"]
[]
[]
[]
[]
["NOTE: The Dec. 1, 2020 Child Count totals should be used to compute the per capita amounts.  The Child Count should be adjusted to exclude students funded through CSA.  Also, the budgeted amount must be based on the divisions's preliminary budget and must be within the same level of effort or higher amount to meet the MOE eligibility requirements by using either dollar or per capita amounts.  Division's budgeting the same exact amount it spent in the comparable year (i.e., the year it met its MOE requirement) may be requested to provide  additional documentation.  "]

{"sheet":"CEIS & PSA","index":10,"n_rows":27,"n_cols":12,"rows_kept":27,"cut":false,"hidden":false,"merged":[[2,0,2,11],[4,0,4,11],[5,1,5,10],[6,1,6,8],[11,1,11,8],[16,1,18,4],[16,5,18,6],[16,7,16,8],[16,9,16,10],[13,1,14,8],[8,1,9,8],[7,1,7,8],[12,1,12,8],[17,7,18,7],[17,9,18,9]]}
[null,"                                         School Division:",null,null,null,null,{"$f":"T('Cover & Certifications'!$A$10:$G$10)","v":"ALEXANDRIA CITY PUBLIC SCHOOLS"},null,null,"Division Number:",null,{"$f":"'Cover & Certifications'!I10","v":101}]
[null,null,null,null,null,null,null,null,null,null,"Region",{"$f":"'Cover & Certifications'!B$16","v":4}]
["2021-2022 SPECIAL EDUCATION CEIS AND PROPORTIONATE SET ASIDE "]
[]
["                "]
[null,"Each local school division shall ensure Comprehensive Coordinated Early Intervening Services and Coordinated Early Intervening Services and Proportionate Set-aside requirements have been addressed."]
[null,"Is your school division required to set aside 15% for  Comprehensive Coordinated Early Intervening Services or voluntarily setting \naside upto 15% of Part B funds for Coordinated Early Intervening Services?",null,null,null,null,null,null,null,null,"yes"]
[null,"If yes, provide a brief narrative of how funds will be used.  An information packet requesting additional information will be sent at a later time."]
[]
[]
[]
[null,"Is your school division required to set aside funds for parentally-placed students in private schools or students identified during child find?",null,null,null,null,null,null,null,null,"yes"]
[null,"If no, explain why the division is not required and if yes, explain how funds will be used.  Tha actual budget will be determined when the division submits its data in the Proportionate Set-Aside (speced-PSA) application."]
[]
[]
[]
[null,"\nEXPENDITURE ACCOUNTS",null,null,null,"\nOBJECT CODE",null,"Section 611",null,"Section 619"]
[null,null,null,null,null,null,null,"(D)\n\nCEIS","(E)","(D)\n\nCEIS","(E)"]
[null,null,null,null,null,null,null,null,"Proportionate   Set-Aside",null,"Proportionate   Set-Aside"]
[null,"Personal Services",null,null,null,1000,null,352819.27,13307.4]
[null,"Employee Benefits",null,null,null,2000,null,135642.18]
[null,"Purchased Services",null,null,null,3000,null,63084.5]
[null,"Internal Services",null,null,null,4000]
[null,"Other Services",null,null,null,5000]
[null,"Materials /  Supplies",null,null,null,6000]
[null,"Capital Outlay",null,null,null,8000]
[null,"TOTAL PROPOSED BUDGET",null,null,null,null,null,{"$f":"SUM(H20:H26)","v":551545.94999999995},{"$f":"SUM(I20:I26)","v":13307.4},{"$f":"SUM(J20:J26)","v":0},{"$f":"SUM(K20:K26)","v":0}]

{"sheet":"Section 611","index":11,"n_rows":139,"n_cols":16,"rows_kept":139,"cut":false,"hidden":false,"merged":[[63,6,63,7],[63,8,63,9],[63,10,63,11],[63,12,63,14],[62,6,62,7],[62,8,62,9],[62,10,62,11],[62,12,62,14],[59,6,59,7],[59,8,59,9],[59,10,59,11],[59,12,59,14],[58,6,58,7],[58,8,58,9],[58,10,58,11],[58,12,58,14],[61,6,61,7],[61,8,61,9],[61,10,61,11],[61,12,61,14],[60,6,60,7],[60,8,60,9],[60,10,60,11],[60,12,60,14],[37,1,37,14],[51,0,51,15],[46,0,46,15],[47,0,47,15],[48,0,48,15],[57,6,57,7],[57,8,57,9],[57,10,57,11],[57,12,57,14],[56,6,56,7],[56,8,56,9],[56,10,56,11],[56,12,56,14],[84,1,84,15],[74,1,74,15],[76,1,76,15],[78,1,78,15],[79,1,79,15],[81,1,81,15],[82,1,82,15],[21,1,21,7],[21,8,21,10],[21,11,21,14],[23,1,23,7],[24,1,24,7],[24,8,24,10],[24,11,24,14],[25,1,25,7],[25,8,25,10],[25,11,25,14],[38,1,39,14],[28,11,28,14],[26,1,26,7],[26,8,26,10],[26,11,26,14],[27,1,27,7],[28,1,28,10],[18,1,18,7],[18,8,18,10],[18,11,18,14],[20,1,20,7],[19,1,19,7],[19,8,19,10],[19,11,19,14],[20,11,20,14],[16,1,16,7],[17,1,17,7],[17,8,17,10],[17,11,17,14],[16,11,16,14],[16,8,16,10],[71,1,71,15],[73,1,73,15],[69,0,70,15],[20,8,20,10],[23,8,23,10],[23,11,23,14],[66,0,67,15],[22,1,22,7],[22,8,22,10],[22,11,22,14],[31,0,31,15],[27,8,27,10],[27,11,27,14],[55,6,55,7],[55,8,55,9],[55,10,55,11],[55,12,55,14],[54,6,54,7],[54,8,54,9],[54,10,54,11],[54,12,54,14],[49,0,49,15],[33,1,33,14],[34,1,35,14],[3,0,3,15],[5,0,5,15],[9,1,9,3],[9,4,9,10],[6,0,6,15],[7,1,7,14],[9,11,9,12],[9,13,9,14],[15,1,15,14],[10,4,10,14],[11,1,11,3],[11,4,11,14],[12,4,12,14],[10,1,10,3],[13,4,13,14]]}
[]
[null,"                                         School Division:",null,null,null,null,{"$f":"T('Cover & Certifications'!$A$10:$G$10)","v":"ALEXANDRIA CITY PUBLIC SCHOOLS"},null,null,null,null,null,"Division Number:",null,null,{"$f":"'Cover & Certifications'!I$10","v":101}]
[]
["For additional instructions for completing this section of the Annual Plan/Part B Flow-Through Application, please review "]
["Section F of the \"LEA Instructions\" tab."]
["VIRGINIA DEPARTMENT OF EDUCATION\nPART B, SECTION 611 (Flow-Through Funds)\nGRANT PERIOD:  JULY 1, 2021 – SEPTEMBER 30, 2023"]
["Joint Applications Only!"]
[null,"For joint applications, please select the Fiscal Agent below, and provide the requested contact information. \n                                   If this is not a joint application move directly to the next section below."]
[]
[null,"Fiscal Agent:",null,null,null,null,null,null,null,null,null,"LEA Code:",null,{"$f":"IF(ISBLANK($E$10),\" \",VLOOKUP($E$10,Prefills!$A$2:$C$153,2))","v":" "}]
[null,"Joint Application Project Director:"]
[null,"Mailing Address of Project Director:"]
[null,"Phone:"]
[null,"E-mail:"]
[]
[null,"If this is a joint application and allocations are to be combined into a single award issued to the fiscal agent designated above, list participating LEAs and the amounts to be combined into a single award.  Note: All participating agencies must still complete the remainder of this tab."]
[null,"Participating Agency Name",null,null,null,null,null,null,"Code Number",null,null,"Amount Released"]
[null,null,null,null,null,null,null,null,{"$f":"IF(ISBLANK(B18),\" \",VLOOKUP(B18,Prefills!A2:C153,2))","v":" "}]
[null,null,null,null,null,null,null,null,{"$f":"IF(ISBLANK(B19),\" \",VLOOKUP(B19,Prefills!A3:C154,2))","v":" "}]
[null,null,null,null,null,null,null,null,{"$f":"IF(ISBLANK(B20),\" \",VLOOKUP(B20,Prefills!A4:C155,2))","v":" "}]
[null,null,null,null,null,null,null,null,{"$f":"IF(ISBLANK(B21),\" \",VLOOKUP(B21,Prefills!A5:C156,2))","v":" "}]
[null,null,null,null,null,null,null,null,{"$f":"IF(ISBLANK(B22),\" \",VLOOKUP(B22,Prefills!A6:C157,2))","v":" "}]
[null,null,null,null,null,null,null,null,{"$f":"IF(ISBLANK(B23),\" \",VLOOKUP(B23,Prefills!A7:C158,2))","v":" "}]
[null,null,null,null,null,null,null,null,{"$f":"IF(ISBLANK(B24),\" \",VLOOKUP(B24,Prefills!A8:C159,2))","v":" "}]
[null,null,null,null,null,null,null,null,{"$f":"IF(ISBLANK(B25),\" \",VLOOKUP(B25,Prefills!A9:C160,2))","v":" "}]
[null,null,null,null,null,null,null,null,{"$f":"IF(ISBLANK(B26),\" \",VLOOKUP(B26,Prefills!A10:C161,2))","v":" "}]
[null,null,null,null,null,null,null,null,{"$f":"IF(ISBLANK(B27),\" \",VLOOKUP(B27,Prefills!A13:C164,2))","v":" "}]
[null,null,null,null,null,null,null,null,{"$f":"IF(ISBLANK(B28),\" \",VLOOKUP(B28,Prefills!A14:C165,2))","v":" "}]
[null,"Total Amount to be issued to Fiscal Agent:  ",null,null,null,null,null,null,null,null,null,{"$f":"SUM(L18:O28)","v":0}]
[]
[]
["PROPOSED USE OF PART B, SECTION 611 FUNDS\nGRANT PERIOD:  JULY 1, 2021 – SEPTEMBER 30, 2023"]
[]
[null,"In narrative format, please provide a description and budget outline of all personnel (i.e., teachers, instructional assistants, administrators, clerical, support personnel, and others) to be supported in whole or in part with IDEA, Part B, Section 611 grant funds (with proposed amounts and FTEs).   "]
[null,"6.0 FTE Instuctional  Specialists, 1.0 Compliance Specialist, 1.0 FTE Early Childhood Coordinator, 1.0 Child Find Specialist, 1.0 FTE Citywide Programs Coordinator, 1.0 Clinical Specialist, 1.0 Private Placement Specialist, 1.0 Assistive Technology Instructional Specialist, 1.0 Parent Support Specialist, 1.0 Speech and Language Pathologist, 3.0 Transition Specialists, 1.0 ACC Specialist, 1.0 FTE Asssitant Director of Related Services and Special Programs, 1.0 Accountability Specialist, .5 FTE Occupational Therapist, 1.0 Paraprofessional-"]
[]
[]
[null,"In narrative format, please provide a detailed description and budget outline of all additional activities, goods and services to be supported with IDEA, Part B, Section 611 grant funds."]
[]
[]
[]
[]
[]
[]
[null,"                                         School Division:",null,null,null,null,{"$f":"T('Cover & Certifications'!$A$10:$G$10)","v":"ALEXANDRIA CITY PUBLIC SCHOOLS"},null,null,null,null,null,"Division Number:",null,null,{"$f":"'Cover & Certifications'!I$10","v":101}]
[]
["Virginia Department of Education"]
["SPECIAL EDUCATION FEDERAL PROGRAM"]
["PROPOSED GRANT BUDGET"]
[" Part B, Section 611, Flow-Through Funds (July 1, 2021-September 30, 2023)"]
[]
["Complete column C, by allocating PROPOSED grant funds to object code categories 1000 through 8000.  A description of the object code categories is available on the VDOE's Web site.  See the instruction tab for the Web address.  In determining appropriate assignment of items to object codes, applicants are strongly encouraged to consult with the individual(s) within the LEA who have responsibility for completing the Annual School Report – Financial Section.\n\nList all equipment items costing five thousand dollars ($5,000) or more and also list inventory items costing less than $5,000 that will be tracked, including I-pads, computers, cameras, etc., to be purchased with grant funds, and provide information on proposed out-of-state/country travel to be supported with grant funds."]
[]
[]
["(A)",null,null,null,"(B)",null,"(C )",null,"(D)",null,"(E)",null,"(F)"]
["EXPENDITURE ACCOUNTS",null,null,null,"OBJECT CODE",null,"Budget ",null,"CEIS",null,"Proportionate Set-aside",null,"Total Budget"]
["Personal Services",null,null,null,1000,null,2092486.5,null,{"$f":"'CEIS & PSA'!H20","v":352819.27},null,{"$f":"'CEIS & PSA'!I20","v":13307.4},null,{"$f":"SUM(G57:L57)","v":2458613.17}]
["Employee Benefits",null,null,null,2000,null,765342.37,null,{"$f":"'CEIS & PSA'!H21","v":135642.18},null,{"$f":"'CEIS & PSA'!I21","v":0},null,900984.55]
["Purchased Services",null,null,null,3000,null,null,null,{"$f":"'CEIS & PSA'!H22","v":63084.5},null,{"$f":"'CEIS & PSA'!I22","v":0},null,63084.5]
["Internal Services",null,null,null,4000,null,null,null,{"$f":"'CEIS & PSA'!H23","v":0},null,{"$f":"'CEIS & PSA'!I23","v":0},null,0]
["Other Services",null,null,null,5000,null,64020.15,null,{"$f":"'CEIS & PSA'!H24","v":0},null,{"$f":"'CEIS & PSA'!I24","v":0},null,64020.15]
["Materials /  Supplies",null,null,null,6000,null,95023.63,null,{"$f":"'CEIS & PSA'!H25","v":0},null,{"$f":"'CEIS & PSA'!I25","v":0},null,95023.63]
["Capital Outlay",null,null,null,8000,null,null,null,{"$f":"'CEIS & PSA'!H26","v":0},null,{"$f":"'CEIS & PSA'!I26","v":0},null,0]
["TOTAL PROPOSED BUDGET",null,null,null,null,null,{"$f":"SUM(G57:H63)","v":3016872.65},null,{"$f":"SUM(I57:J63)","v":551545.94999999995},null,{"$f":"SUM(K57:L63)","v":13307.4},null,{"$f":"SUM(M57:O63)","v":3581725.9999999995}]
["Proposed Equipment: List items costing $5,000 or more.  Also list inventory items costing less than $5,000 "]
["that will be tracked, including I-pads, computers, cameras, etc."]
[]
[]
["Proposed Out-of State/Country Travel (destination, purpose, estimated cost, number of people):"]
[]
[]
[]
[]
[]
[]
[]
[]
[]
[]
[]
[]
[]
["Certifications, Policy Statements, OMEGA submission and General Questions"]
[]
[]
["Submission Statement, GEPA Statement and Section 611 Application"]
[]
[]
[]
[]
[]
[]
[]
[]
[]
[]
[]
[]
[]
[]
[]
[]
[]
[]
[]
[]
[]
[]
[]
[]
[]
[]
[]
[]
[]
[]
[]
[]
[]
[]
[null,"Capital Outlay:   Proposed expenditures for capital outlay, object code 8000, must be itemized."]
[]
[]
[]
[]
[]
[]
[]
[]
[]
[]
[null,"Equipment Purchases:  Approval for specific items of equipment is required for items costing $5,000.00 or more.  You must obtain approval of each equipment item prior to purchase.  For items not included in this application, approval must be obtained prior to purchase  in accordance with the policies and procedures in effect at that time.  School divisions are expected to maintain an inventory of purchases costing less than $5,000.00 for items such as I-pads, computers, smartboards, library reference books, etc."]
["\u009f"]
[]
[]
[]
[]
[]
[null,"Amendments:"]

{"sheet":"Section 619","index":12,"n_rows":131,"n_cols":241,"rows_kept":131,"cut":false,"hidden":false,"merged":[[56,8,56,9],[28,1,28,7],[28,8,28,10],[30,11,30,14],[57,12,57,14],[57,8,57,9],[57,10,57,11],[55,10,55,11],[54,8,54,9],[54,6,54,7],[58,10,58,11],[59,10,59,11],[61,12,61,14],[60,8,60,9],[63,8,63,9],[77,1,77,15],[72,1,72,15],[75,1,75,15],[58,12,58,14],[59,12,59,14],[63,10,63,11],[56,10,56,11],[74,1,74,15],[60,12,60,14],[70,0,71,15],[56,12,56,14],[63,12,63,14],[57,6,57,7],[61,10,61,11],[62,12,62,14],[58,6,58,7],[59,6,59,7],[63,6,63,7],[62,8,62,9],[60,10,60,11],[67,0,68,15],[60,6,60,7],[61,6,61,7],[62,10,62,11],[62,6,62,7],[10,4,10,14],[28,11,28,14],[24,8,24,10],[51,0,51,14],[47,0,47,15],[61,8,61,9],[55,6,55,7],[54,10,54,11],[25,1,25,7],[37,1,37,13],[54,12,54,14],[55,12,55,14],[55,8,55,9],[15,11,15,12],[15,13,15,14],[23,11,23,14],[27,8,27,10],[17,4,17,14],[29,11,29,14],[29,1,29,7],[5,0,5,15],[13,1,13,14],[15,1,15,3],[18,4,18,14],[22,11,22,14],[48,0,48,15],[24,1,24,7],[30,8,30,10],[25,8,25,10],[27,1,27,7],[31,1,31,10],[23,1,23,7],[21,1,21,14],[25,11,25,14],[26,1,26,7],[26,8,26,10],[27,11,27,14],[29,8,29,10],[40,1,41,13],[3,0,3,15],[22,1,22,7],[58,8,58,9],[59,8,59,9],[34,0,34,15],[26,11,26,14],[30,1,30,7],[56,6,56,7],[9,1,9,3],[11,4,11,14],[12,0,12,15],[22,8,22,10],[39,1,39,13],[24,11,24,14],[49,0,49,15],[46,0,46,15],[31,11,31,14],[36,1,36,13],[38,0,38,15],[9,4,9,14],[16,4,16,14],[15,4,15,10],[7,4,7,14],[19,4,19,14],[17,1,17,3],[16,1,16,3],[7,1,7,3],[8,1,8,3],[8,4,8,14]]}
[]
[null,"                                         School Division:",null,null,null,null,{"$f":"T('Cover & Certifications'!$A$10:$G$10)","v":"ALEXANDRIA CITY PUBLIC SCHOOLS"},null,null,null,null,null,"Division Number:",null,null,{"$f":"'Cover & Certifications'!I$10","v":101}]
[]
["For additional instructions for completing this section of the Annual Plan/Part B Flow-Through Application, please review "]
["Section F of the \"LEA Instructions\" tab."]
["VIRGINIA DEPARTMENT OF EDUCATION\nPROPOSAL SUMMARY\nPART B, SECTION 619 (EARLY CHILDHOOD SPECIAL EDUCATION GRANT) \nGRANT PERIOD:  JULY 1, 2021 – SEPTEMBER 30, 2023"]
[]
[null,"ECSE Contact Person:"]
[null,"Title:"]
[null,"Mailing Address:"]
[null,"Phone:"]
[null,"E-mail:"]
["Joint Applications Only!"]
[null,"For joint applications, please select the Fiscal Agent below, and provide the requested contact information. \n                                   If this is not a joint application move directly to the next section below."]
[]
[null,"Fiscal Agent:",null,null,null,null,null,null,null,null,null,"LEA Code:",null,{"$f":"IF(ISBLANK($E$16),\" \",VLOOKUP($E$16,Prefills!$A$2:$C$153,2))","v":" "}]
[null,"Joint Application Project Director:"]
[null,"Mailing Address of Project Director:"]
[null,"Phone:"]
[null,"E-mail:"]
[]
[null,"If this is a joint application and allocations are to be combined into a single award issued to the fiscal agent designated above, list participating LEAs and the amounts to be combined into a single award.  Note: All participating agencies must still complete the remainder of this tab."]
[null,"Participating Agency Name",null,null,null,null,null,null,"Code Number",null,null,"Amount Released"]
[null,null,null,null,null,null,null,null,{"$f":"IF(ISBLANK(B24),\" \",VLOOKUP(B24,Prefills!A11:C162,2))","v":" "}]
[null,null,null,null,null,null,null,null,{"$f":"IF(ISBLANK(B25),\" \",VLOOKUP(B25,Prefills!A12:C163,2))","v":" "}]
[null,null,null,null,null,null,null,null,{"$f":"IF(ISBLANK(B26),\" \",VLOOKUP(B26,Prefills!A13:C164,2))","v":" "}]
[null,null,null,null,null,null,null,null,{"$f":"IF(ISBLANK(B27),\" \",VLOOKUP(B27,Prefills!A14:C165,2))","v":" "}]
[null,null,null,null,null,null,null,null,{"$f":"IF(ISBLANK(B28),\" \",VLOOKUP(B28,Prefills!A15:C166,2))","v":" "}]
[null,null,null,null,null,null,null,null,{"$f":"IF(ISBLANK(B29),\" \",VLOOKUP(B29,Prefills!A16:C167,2))","v":" "}]
[null,null,null,null,null,null,null,null,{"$f":"IF(ISBLANK(B30),\" \",VLOOKUP(B30,Prefills!A17:C168,2))","v":" "}]
[null,null,null,null,null,null,null,null,{"$f":"IF(ISBLANK(B31),\" \",VLOOKUP(B31,Prefills!A20:C171,2))","v":" "}]
[null,"Total Amount to be issued to Fiscal Agent:   ",null,null,null,null,null,null,null,null,null,{"$f":"SUM(L24:O31)","v":0}]
[null,"                                         School Division:",null,null,null,null,{"$f":"T('Cover & Certifications'!$A$10:$G$10)","v":"ALEXANDRIA CITY PUBLIC SCHOOLS"},null,null,null,null,null,"Division Number:",null,null,{"$f":"'Cover & Certifications'!I$10","v":101}]
[]
["PART B, SECTION 619 (EARLY CHILDHOOD SPECIAL EDUCATION GRANT) \nGRANT PERIOD:  JULY 1, 2021 – SEPTEMBER 30, 2023"]
[]
[null,"In narrative format, please provide a description and budget outline of all personnel (i.e., teachers, instructional assistants, administrators, clerical, support personnel, and others) to be supported in whole or in part with IDEA, Part B, Section 619 grant funds (with proposed budget amounts and FTEs).  "]
[]
[]
[null,"In narrative format, please provide a detailed description and budget outline of all additional activities, goods and services to be supported with IDEA, Part B, Section 619 grant funds."]
[]
[]
[]
[]
[null,"                                         School Division:",null,null,null,null,{"$f":"T('Cover & Certifications'!$A$10:$G$10)","v":"ALEXANDRIA CITY PUBLIC SCHOOLS"},null,null,null,null,null,"Division Number:",null,null,{"$f":"'Cover & Certifications'!I$10","v":101}]
[]
["Virginia Department of Education"]
["PART B, SECTION 619 (EARLY CHILDHOOD SPECIAL EDUCATION GRANT) APPLICATION"]
["PROPOSED GRANT BUDGET"]
[" Part B, Section 619, Preschool Funds (July 1, 2020-September 30, 2022)"]
[]
["Complete column C, by allocating PROPOSED grant funds to object code categories 1000 through 8000.  A description of the object code categories is available on the VDOE's Web site.  See the instruction tab for the Web address.  In determining appropriate assignment of items to object codes, applicants are strongly encouraged to consult with the individual(s) within the LEA who have responsibility for completing the Annual School Report – Financial Section.\n\nList all equipment items costing five thousand dollars ($5,000) or more, and also list inventory items costing less than $5,000 that will be tracked, including I-pads, computers, cameras, etc., to be purchased with grant funds, and provide information on proposed out-of-state/country travel to be supported with grant funds."]
[]
[]
["(A)",null,null,null,"(B)",null,"(C )",null,"(D)",null,"(E)",null,"(F)"]
["EXPENDITURE ACCOUNTS",null,null,null,"OBJECT CODE",null,"Budget ",null,"CEIS",null,"Proportionate Set-aside",null,"Total Budget"]
["Personal Services",null,null,null,1000,null,65121,null,{"$f":"'CEIS & PSA'!J20","v":0},null,{"$f":"'CEIS & PSA'!K20","v":0},null,{"$f":"SUM(G57:L57)","v":65121}]
["Employee Benefits",null,null,null,2000,null,30126,null,{"$f":"'CEIS & PSA'!J21","v":0},null,{"$f":"'CEIS & PSA'!K21","v":0},null,30126]
["Purchased Services",null,null,null,3000,null,null,null,{"$f":"'CEIS & PSA'!J22","v":0},null,{"$f":"'CEIS & PSA'!K22","v":0},null,0]
["Internal Services",null,null,null,4000,null,null,null,{"$f":"'CEIS & PSA'!J23","v":0},null,{"$f":"'CEIS & PSA'!K23","v":0},null,0]
["Other Services",null,null,null,5000,null,null,null,{"$f":"'CEIS & PSA'!J24","v":0},null,{"$f":"'CEIS & PSA'!K24","v":0},null,0]
["Materials /  Supplies",null,null,null,6000,null,null,null,{"$f":"'CEIS & PSA'!J25","v":0},null,{"$f":"'CEIS & PSA'!K25","v":0},null,0]
["Capital Outlay",null,null,null,8000,null,null,null,{"$f":"'CEIS & PSA'!J26","v":0},null,{"$f":"'CEIS & PSA'!K26","v":0},null,0]
["TOTAL PROPOSED BUDGET",null,null,null,null,null,{"$f":"SUM(G57:H63)","v":95247},null,{"$f":"SUM(I57:J63)","v":0},null,{"$f":"SUM(K57:L63)","v":0},null,{"$f":"SUM(M57:O63)","v":95247}]
["Proposed Equipment: List items costing $5,000 or more.  Also list inventory items costing less than $5,000 ",null,null,null,null,null,null,null,null,null,null,null,null,null,null,null,null,null,null,null,null,null,null,null,null,null,null,null,null,null,null,null,"Proposed Equipment: List Items costing $5,000 or more.  Also list inventory items costing less than $5,000 ",null,null,null,null,null,null,null,null,null,null,null,null,null,null,null,"Proposed Equipment: List Items costing $5,000 or more.  Also list inventory items costing less than $5,000 ",null,null,null,null,null,null,null,null,null,null,null,null,null,null,null,"Proposed Equipment: List Items costing $5,000 or more.  Also list inventory items costing less than $5,000 ",null,null,null,null,null,null,null,null,null,null,null,null,null,null,null,"Proposed Equipment: List Items costing $5,000 or more.  Also list inventory items costing less than $5,000 ",null,null,null,null,null,null,null,null,null,null,null,null,null,null,null,"Proposed Equipment: List Items costing $5,000 or more.  Also list inventory items costing less than $5,000 ",null,null,null,null,null,null,null,null,null,null,null,null,null,null,null,"Proposed Equipment: List Items costing $5,000 or more.  Also list inventory items costing less than $5,000 ",null,null,null,null,null,null,null,null,null,null,null,null,null,null,null,"Proposed Equipment: List Items costing $5,000 or more.  Also list inventory items costing less than $5,000 ",null,null,null,null,null,null,null,null,null,null,null,null,null,null,null,"Proposed Equipment: List Items costing $5,000 or more.  Also list inventory items costing less than $5,000 ",null,null,null,null,null,null,null,null,null,null,null,null,null,null,null,"Proposed Equipment: List Items costing $5,000 or more.  Also list inventory items costing less than $5,000 ",null,null,null,null,null,null,null,null,null,null,null,null,null,null,null,"Proposed Equipment: List Items costing $5,000 or more.  Also list inventory items costing less than $5,000 ",null,null,null,null,null,null,null,null,null,null,null,null,null,null,null,"Proposed Equipment: List Items costing $5,000 or more.  Also list inventory items costing less than $5,000 ",null,null,null,null,null,null,null,null,null,null,null,null,null,null,null,"Proposed Equipment: List Items costing $5,000 or more.  Also list inventory items costing less than $5,000 ",null,null,null,null,null,null,null,null,null,null,null,null,null,null,null,"Proposed Equipment: List Items costing $5,000 or more.  Also list inventory items costing less than $5,000 ",null,null,null,null,null,null,null,null,null,null,null,null,null,null,null,"Proposed Equipment: List Items costing $5,000 or more.  Also list inventory items costing less than $5,000 "]
["that will be tracked, including I-pads, computers, cameras, etc.",null,null,null,null,null,null,null,null,null,null,null,null,null,null,null,null,null,null,null,null,null,null,null,null,null,null,null,null,null,null,null,"that will be tracked, including I-pads, computers, cameras, etc., to be purchased with grant funds.",null,null,null,null,null,null,null,null,null,null,null,null,null,null,null,"that will be tracked, including I-pads, computers, cameras, etc., to be purchased with grant funds.",null,null,null,null,null,null,null,null,null,null,null,null,null,null,null,"that will be tracked, including I-pads, computers, cameras, etc., to be purchased with grant funds.",null,null,null,null,null,null,null,null,null,null,null,null,null,null,null,"that will be tracked, including I-pads, computers, cameras, etc., to be purchased with grant funds.",null,null,null,null,null,null,null,null,null,null,null,null,null,null,null,"that will be tracked, including I-pads, computers, cameras, etc., to be purchased with grant funds.",null,null,null,null,null,null,null,null,null,null,null,null,null,null,null,"that will be tracked, including I-pads, computers, cameras, etc., to be purchased with grant funds.",null,null,null,null,null,null,null,null,null,null,null,null,null,null,null,"that will be tracked, including I-pads, computers, cameras, etc., to be purchased with grant funds.",null,null,null,null,null,null,null,null,null,null,null,null,null,null,null,"that will be tracked, including I-pads, computers, cameras, etc., to be purchased with grant funds.",null,null,null,null,null,null,null,null,null,null,null,null,null,null,null,"that will be tracked, including I-pads, computers, cameras, etc., to be purchased with grant funds.",null,null,null,null,null,null,null,null,null,null,null,null,null,null,null,"that will be tracked, including I-pads, computers, cameras, etc., to be purchased with grant funds.",null,null,null,null,null,null,null,null,null,null,null,null,null,null,null,"that will be tracked, including I-pads, computers, cameras, etc., to be purchased with grant funds.",null,null,null,null,null,null,null,null,null,null,null,null,null,null,null,"that will be tracked, including I-pads, computers, cameras, etc., to be purchased with grant funds.",null,null,null,null,null,null,null,null,null,null,null,null,null,null,null,"that will be tracked, including I-pads, computers, cameras, etc., to be purchased with grant funds.",null,null,null,null,null,null,null,null,null,null,null,null,null,null,null,"that will be tracked, including I-pads, computers, cameras, etc., to be purchased with grant funds."]
[]
[]
[]
["Proposed Out-of State/Country Travel (destination, purpose, estimated cost, number of people):"]
[]
[]
[]
[]
["Certifications, Policy Statements, OMEGA submission and General Questions"]
[]
[]
["Submission Statement, GEPA Statement and Section 611 Application"]
[]
[]
[]
[]
[]
[]
[]
[]
[]
[]
[]
[]
[]
[]
[]
[]
[]
[]
[]
[]
[]
[]
[]
[]
[]
[]
[]
[]
[]
[]
[]
[]
[]
[]
[null,"Capital Outlay:   Proposed expenditures for capital outlay, object code 8000, must be itemized."]
[]
[]
[]
[]
[]
[]
[]
[]
[]
[]
[null,"Equipment Purchases:  Approval for specific items of equipment is required for items costing $5,000.00 or more.  You must obtain approval of each equipment item prior to purchase.  For items not included in this application, approval must be obtained prior to purchase  in accordance with the policies and procedures in effect at that time.  School divisions are expected to maintain an inventory of purchases costing less than $5,000.00 for items such as I-pads, computers, smartboards, library reference books, etc."]
["\u009f"]
[]
[]
[]
[]
[]
[null,"Amendments:"]

{"sheet":"SOP Section 611","index":13,"n_rows":139,"n_cols":15,"rows_kept":139,"cut":false,"hidden":true,"merged":[[44,12,44,13],[44,14,44,15],[54,6,54,7],[54,12,54,14],[54,10,54,11],[27,1,27,7],[37,1,37,14],[44,4,44,5],[54,8,54,9],[25,8,25,10],[26,8,26,10],[33,1,33,14],[26,1,26,7],[38,1,39,14],[28,1,28,10],[28,11,28,14],[25,11,25,14],[31,0,31,15],[34,1,35,14],[6,0,6,15],[20,1,20,7],[20,8,20,10],[20,11,20,14],[21,1,21,7],[21,8,21,10],[21,11,21,14],[10,1,10,3],[10,4,10,14],[16,1,16,7],[16,8,16,10],[16,11,16,14],[11,4,11,14],[11,1,11,3],[12,4,12,14],[13,4,13,14],[15,1,15,14],[9,11,9,12],[9,13,9,14],[80,1,80,15],[69,0,70,15],[77,1,77,15],[75,1,75,15],[78,1,78,15],[71,1,71,15],[74,1,74,15],[73,1,73,15],[23,8,23,10],[23,11,23,14],[23,1,23,7],[24,1,24,7],[24,8,24,10],[24,11,24,14],[57,6,57,7],[57,8,57,9],[57,10,57,11],[57,12,57,14],[61,8,61,9],[61,10,61,11],[61,12,61,14],[60,6,60,7],[60,8,60,9],[60,10,60,11],[1,14,1,15],[1,4,1,5],[1,12,1,13],[25,1,25,7],[27,8,27,10],[27,11,27,14],[26,11,26,14],[22,1,22,7],[22,8,22,10],[22,11,22,14],[17,1,17,7],[17,8,17,10],[17,11,17,14],[19,11,19,14],[19,1,19,7],[19,8,19,10],[18,1,18,7],[18,8,18,10],[18,11,18,14],[3,0,3,15],[5,0,5,15],[7,1,7,14],[9,1,9,3],[9,4,9,10],[66,0,67,15],[58,6,58,7],[58,8,58,9],[58,10,58,11],[58,12,58,14],[59,6,59,7],[59,8,59,9],[59,10,59,11],[55,12,55,14],[56,8,56,9],[56,10,56,11],[56,12,56,14],[55,6,55,7],[59,12,59,14],[55,8,55,9],[63,8,63,9],[63,10,63,11],[63,12,63,14],[62,6,62,7],[62,8,62,9],[62,10,62,11],[62,12,62,14],[56,6,56,7],[55,10,55,11],[60,12,60,14],[63,6,63,7],[51,0,51,14],[46,0,46,15],[47,0,47,15],[48,0,48,15],[49,0,49,15],[61,6,61,7]]}
[]
[null,"                                           ",null,null,"SOP:",null,{"$f":"'SOP Assurances & Certifications'!H1","v":"ALEXANDRIA CITY PUBLIC SCHOOLS"},null,null,null,null,null,"SOP Number:",null,{"$f":"'SOP Cover & Certifications'!I$10","v":101}]
[]
["For additional instructions for completing this section of the Annual Plan/Part B Flow-Through Application, please review"]
["Section E of the \"LEA Instructions\" tab."]
["VIRGINIA DEPARTMENT OF EDUCATION\nPART B, SECTION 611 (Flow-Through Funds)\nGRANT PERIOD:  JULY 1, 2021 – SEPTEMBER 30, 2023"]
["Joint Applications Only!"]
[null,"For joint applications, please select the Fiscal Agent below, and provide the requested contact information. \n                                   If this is not a joint application move directly to the next section below."]
[]
[null,"Fiscal Agent:",null,null,null,null,null,null,null,null,null,"LEA Code:",null,{"$f":"IF(ISBLANK($E$10),\" \",VLOOKUP($E$10,Prefills!$A$2:$C$153,2))","v":" "}]
[null,"Joint Application Project Director:"]
[null,"Mailing Address of Project Director:"]
[null,"Phone:"]
[null,"Email:"]
[]
[null,"If this is a joint application and allocations are to be combined into a single award issued to the fiscal agent designated above, list participating LEAs and the amounts to be combined into a single award.  Note: All participating agencies must still complete the remainder of this tab."]
[null,"Participating Agency Name",null,null,null,null,null,null,"Code Number",null,null,"Amount Released"]
[null,null,null,null,null,null,null,null,{"$f":"IF(ISBLANK(B18),\" \",VLOOKUP(B18,Prefills!A2:C153,2))","v":" "}]
[null,null,null,null,null,null,null,null,{"$f":"IF(ISBLANK(B19),\" \",VLOOKUP(B19,Prefills!A3:C154,2))","v":" "}]
[null,null,null,null,null,null,null,null,{"$f":"IF(ISBLANK(B20),\" \",VLOOKUP(B20,Prefills!A4:C155,2))","v":" "}]
[null,null,null,null,null,null,null,null,{"$f":"IF(ISBLANK(B21),\" \",VLOOKUP(B21,Prefills!A5:C156,2))","v":" "}]
[null,null,null,null,null,null,null,null,{"$f":"IF(ISBLANK(B22),\" \",VLOOKUP(B22,Prefills!A6:C157,2))","v":" "}]
[null,null,null,null,null,null,null,null,{"$f":"IF(ISBLANK(B23),\" \",VLOOKUP(B23,Prefills!A7:C158,2))","v":" "}]
[null,null,null,null,null,null,null,null,{"$f":"IF(ISBLANK(B24),\" \",VLOOKUP(B24,Prefills!A8:C159,2))","v":" "}]
[null,null,null,null,null,null,null,null,{"$f":"IF(ISBLANK(B25),\" \",VLOOKUP(B25,Prefills!A9:C160,2))","v":" "}]
[null,null,null,null,null,null,null,null,{"$f":"IF(ISBLANK(B26),\" \",VLOOKUP(B26,Prefills!A10:C161,2))","v":" "}]
[null,null,null,null,null,null,null,null,{"$f":"IF(ISBLANK(B27),\" \",VLOOKUP(B27,Prefills!A13:C164,2))","v":" "}]
[null,null,null,null,null,null,null,null,{"$f":"IF(ISBLANK(B28),\" \",VLOOKUP(B28,Prefills!A14:C165,2))","v":" "}]
[null,"Total Amount to be issued to Fiscal Agent:  ",null,null,null,null,null,null,null,null,null,{"$f":"SUM(L18:O28)","v":0}]
[]
[]
["PROPOSED USE OF PART B, SECTION 611 FUNDS\nGRANT PERIOD:  JULY 1, 2021 – SEPTEMBER 30, 2023"]
[]
[null,"In narrative format, please provide a description and budget outline of all personnel (i.e., teachers, instructional assistants, administrators, clerical, support personnel, and other) to be supported in whole or in part with IDEA, Part B, Section 611 grant funds (with proposed budget amounts and FTEs)."]
[]
[]
[]
[null,"In narrative format, please provide a detailed description and budget outline of all additional activities, goods and services to be supported with IDEA, Part B, Section 611 grant funds."]
[]
[]
[null,"  "]
[]
[]
[]
[null,null,null,null,"SOP:",null,{"$f":"T('SOP Assurances & Certifications'!H1)","v":"ALEXANDRIA CITY PUBLIC SCHOOLS"},null,null,null,null,null,"SOP Number:",null,{"$f":"'SOP Cover & Certifications'!I$10","v":101}]
[]
["Virginia Department of Education"]
["SPECIAL EDUCATION FEDERAL PROGRAM"]
["PROPOSED GRANT BUDGET"]
[" Part B, Section 611, Flow-Through Funds (July 1, 2021 - September 30, 2023)"]
[]
["Complete column C, by allocating PROPOSED grant funds to object code categories 1000 through 8000.  A description of the object code categories is available on the VDOE's Web site.  See the instruction tab for the Web address.  In determining appropriate assignment of items to object codes, applicants are strongly encouraged to consult with the individual(s) within the LEA who have responsibility for completing the Annual School Report – Financial Section.\n\nList all equipment items costing five thousand dollars ($5,000) or more and also list inventory items costing less than $5,000 that will be tracked, including I-pads, computers, cameras, etc., to be purchased with grant funds, and provide information on proposed out-of-state/country travel to be supported with grant funds. \n"]
[]
[]
["(A)",null,null,null,"(B)",null,"(C )",null,"(D)",null,"(E)",null,"(F)"]
["EXPENDITURE ACCOUNTS",null,null,null,"OBJECT CODE",null,"Budget ",null,"CEIS",null,"Proportionate Set-aside",null,"Total Budget"]
["Personal Services",null,null,null,1000,null,null,null,null,null,null,null,{"$f":"SUM(G57:L57)","v":0}]
["Employee Benefits",null,null,null,2000,null,null,null,null,null,null,null,0]
["Purchased Services",null,null,null,3000,null,null,null,null,null,null,null,0]
["Internal Services",null,null,null,4000,null,null,null,null,null,null,null,0]
["Other Services",null,null,null,5000,null,null,null,null,null,null,null,0]
["Materials /  Supplies",null,null,null,6000,null,null,null,null,null,null,null,0]
["Capital Outlay",null,null,null,8000,null,null,null,null,null,null,null,0]
["TOTAL PROPOSED BUDGET",null,null,null,null,null,{"$f":"SUM(G57:H63)","v":0},null,{"$f":"SUM(I57:J63)","v":0},null,{"$f":"SUM(K57:L63)","v":0},null,{"$f":"SUM(M57:O63)","v":0}]
["Proposed Equipment: List items costing $5,000 or more.  Also list inventory items costing less than $5,000 "]
["that will be tracked, including I-pads, computers, cameras, etc."]
[]
[]
["Proposed Out-of State/Country Travel (destination, purpose, estimated cost, number of people):"]
[]
[]
[]
[]
[]
[]
[]
[]
[]
[]
[]
[]
[]
["Certifications, Policy Statements, OMEGA submission and General Questions"]
[]
[]
["Submission Statement, GEPA Statement and Section 611 Application"]
[]
[]
[]
[]
[]
[]
[]
[]
[]
[]
[]
[]
[]
[]
[]
[]
[]
[]
[]
[]
[]
[]
[]
[]
[]
[]
[]
[]
[]
[]
[]
[]
[]
[]
[null,"Capital Outlay:   Proposed expenditures for capital outlay, object code 8000, must be itemized."]
[]
[]
[]
[]
[]
[]
[]
[]
[]
[]
[null,"Equipment Purchases:  Approval for specific items of equipment is required for items costing $5,000.00 or more.  You must obtain approval of each equipment item prior to purchase.  For items not included in this application, approval must be obtained prior to purchase  in accordance with the policies and procedures in effect at that time.  School divisions are expected to maintain an inventory of purchases costing less than $5,000.00 for items such as I-pads, computers, smartboards, library reference books, etc."]
["\u009f"]
[]
[]
[]
[]
[]
[null,"Amendments:"]

{"sheet":"SOP Section 619","index":14,"n_rows":86,"n_cols":15,"rows_kept":86,"cut":false,"hidden":true,"merged":[[68,0,69,15],[65,6,65,7],[65,8,65,9],[65,10,65,11],[65,12,65,14],[62,8,62,9],[63,10,63,11],[62,10,62,11],[85,1,85,15],[83,1,83,15],[79,1,79,15],[78,1,78,15],[76,1,76,15],[75,1,75,15],[82,1,82,15],[80,1,80,15],[73,1,73,15],[64,12,64,14],[63,12,63,14],[62,12,62,14],[64,6,64,7],[64,8,64,9],[64,10,64,11],[63,6,63,7],[62,6,62,7],[71,0,72,15],[1,4,1,5],[1,12,1,13],[1,14,1,15],[9,1,9,3],[9,4,9,14],[63,8,63,9],[3,0,3,15],[5,0,5,15],[7,1,7,3],[7,4,7,14],[17,4,17,14],[32,14,32,15],[21,1,21,14],[59,8,59,9],[59,10,59,11],[59,12,59,14],[58,6,58,7],[58,8,58,9],[58,12,58,14],[19,4,19,14],[8,1,8,3],[8,4,8,14],[10,4,10,14],[11,4,11,14],[13,1,13,14],[12,0,12,15],[16,1,16,3],[22,1,22,7],[22,8,22,10],[22,11,22,14],[15,4,15,10],[15,11,15,12],[15,13,15,14],[16,4,16,14],[17,1,17,3],[18,4,18,14],[15,1,15,3],[25,11,25,14],[26,1,26,7],[31,11,31,14],[30,11,30,14],[28,11,28,14],[30,1,30,7],[27,11,27,14],[29,1,29,7],[24,1,24,7],[25,8,25,10],[30,8,30,10],[29,8,29,10],[37,1,38,14],[40,1,40,14],[39,0,39,15],[28,1,28,7],[29,11,29,14],[32,4,32,5],[32,12,32,13],[23,1,23,7],[23,8,23,10],[23,11,23,14],[27,1,27,7],[26,8,26,10],[26,11,26,14],[27,8,27,10],[24,8,24,10],[24,11,24,14],[25,1,25,7],[46,14,46,15],[57,12,57,14],[56,6,56,7],[36,1,36,14],[34,0,34,15],[28,8,28,10],[46,4,46,5],[41,1,42,14],[31,1,31,10],[61,12,61,14],[60,6,60,7],[60,8,60,9],[60,10,60,11],[60,12,60,14],[46,12,46,13],[53,0,53,14],[56,10,56,11],[56,12,56,14],[57,6,57,7],[58,10,58,11],[59,6,59,7],[56,8,56,9],[61,6,61,7],[61,8,61,9],[61,10,61,11],[57,8,57,9],[57,10,57,11]]}
["                             "]
[null,"                        ",null,null,"SOP:",null,{"$f":"'SOP Cover & Certifications'!A10","v":"ALEXANDRIA CITY PUBLIC SCHOOLS"},null,null,null,null,null,"SOP Number:",null,{"$f":"'SOP Cover & Certifications'!I$10","v":101}]
[]
["For additional instructions for completing this section of the Annual Plan/Part B Flow Through Application, please review "]
["Section E of the \"LEA Instructions\" tab."]
["VIRGINIA DEPARTMENT OF EDUCATION\nPROPOSAL SUMMARY\nPART B, SECTION 619 (EARLY CHILDHOOD SPECIAL EDUCATION GRANT) APPLICATION\nGRANT PERIOD:  JULY 1, 2021 – SEPTEMBER 30, 2023"]
[]
[null,"ECSE Contact Person:"]
[null,"Title:"]
[null,"Mailing Address:"]
[null,"Phone:"]
[null,"Email:"]
["Joint Applications Only!"]
[null,"For joint applications, please select the Fiscal Agent below, and provide the requested contact information. \n                                   If this is not a joint application move directly to the next section below."]
[]
[null,"Fiscal Agent:",null,null,null,null,null,null,null,null,null,"LEA Code:",null,{"$f":"IF(ISBLANK($E$16),\" \",VLOOKUP($E$16,Prefills!$A$2:$C$153,2))","v":" "}]
[null,"Joint Application Project Director:"]
[null,"Mailing Address of Project Director:"]
[null,"Phone:"]
[null,"Email:"]
[]
[null,"If this is a joint application and allocations are to be combined into a single award issued to the fiscal agent designated above, list participating LEAs and the amounts to be combined into a single award.  Note: All participating agencies must still complete the remainder of this tab."]
[null,"Participating Agency Name",null,null,null,null,null,null,"Code Number",null,null,"Amount Released"]
[null,null,null,null,null,null,null,null,{"$f":"IF(ISBLANK(B24),\" \",VLOOKUP(B24,Prefills!A11:C162,2))","v":" "}]
[null,null,null,null,null,null,null,null,{"$f":"IF(ISBLANK(B25),\" \",VLOOKUP(B25,Prefills!A12:C163,2))","v":" "}]
[null,null,null,null,null,null,null,null,{"$f":"IF(ISBLANK(B26),\" \",VLOOKUP(B26,Prefills!A13:C164,2))","v":" "}]
[null,null,null,null,null,null,null,null,{"$f":"IF(ISBLANK(B27),\" \",VLOOKUP(B27,Prefills!A14:C165,2))","v":" "}]
[null,null,null,null,null,null,null,null,{"$f":"IF(ISBLANK(B28),\" \",VLOOKUP(B28,Prefills!A15:C166,2))","v":" "}]
[null,null,null,null,null,null,null,null,{"$f":"IF(ISBLANK(B29),\" \",VLOOKUP(B29,Prefills!A16:C167,2))","v":" "}]
[null,null,null,null,null,null,null,null,{"$f":"IF(ISBLANK(B30),\" \",VLOOKUP(B30,Prefills!A17:C168,2))","v":" "}]
[null,null,null,null,null,null,null,null,{"$f":"IF(ISBLANK(B31),\" \",VLOOKUP(B31,Prefills!A20:C171,2))","v":" "}]
[null,"Total Amount to be issued to Fiscal Agent:   ",null,null,null,null,null,null,null,null,null,{"$f":"SUM(L24:O31)","v":0}]
[null,null,null,null,"SOP:",null,{"$f":"'SOP Assurances & Certifications'!H1","v":"ALEXANDRIA CITY PUBLIC SCHOOLS"},null,null,null,null,null,"SOP Number:",null,{"$f":"'SOP Cover & Certifications'!I$10","v":101}]
[]
["PART B, SECTION 619 (EARLY CHILDHOOD SPECIAL EDUCATION GRANT) APPLICATION\nGRANT PERIOD:  JULY 1, 2021 – SEPTEMBER 30, 2023"]
[]
[null,"In narrative format, please provide a description and budget outline of all personnel (i.e., teachers, instructional assistants, administrators, clerical, support personnel, and other) to be supported in whole or in part with IDEA, Part B, Section 619 grant funds (with proposed budget amounts and FTEs)."]
[]
[]
[]
[null,"In narrative format, please provide a detailed description and budget outline of all additional activities, \ngood and services to be supported with IDEA, Part B, Section 619 grant funds."]
[]
[]
[]
[]
[]
[null,"                                ",null,null,"SOP:",null,{"$f":"T('SOP Assurances & Certifications'!H1)","v":"ALEXANDRIA CITY PUBLIC SCHOOLS"},null,null,null,null,null,"SOP Number:",null,{"$f":"'SOP Cover & Certifications'!I$10","v":101}]
[]
[null,null,null,"Virginia Department of Education"]
[null,null,null,"PART B, SECTION 619 (EARLY CHILDHOOD SPECIAL EDUCATION GRANT) APPLICATION"]
[null,null,null,"PROPOSED GRANT BUDGET"]
["Part B, Section 619, Preschool Funds (July 1, 2021 - September 30, 2023)"]
[]
["Complete column C, by allocating PROPOSED grant funds to object code categories 1000 through 8000.  A description of the object code categories is available on the VDOE's Web site.  See the instruction tab for the Web address.  In determining appropriate assignment of items to object codes, applicants are strongly encouraged to consult with the individual(s) within the LEA who have responsibility for completing the Annual School Report – Financial Section.\n\nList all equipment items costing five thousand dollars ($5,000) or more, and also list inventory items costing less than $5,000 that will be tracked, including I-pads, computers, cameras, etc., to be purchased with grant funds, and provide information on proposed out-of-state/country travel to be supported with grant funds. "]
[]
[]
["(A)",null,null,null,"(B)",null,"(C )",null,"(D)",null,"(E)",null,"(F)"]
["EXPENDITURE ACCOUNTS",null,null,null,"OBJECT CODE",null,"Budget ",null,"CEIS",null,"Proportionate Set-aside",null,"Total Budget"]
["Personal Services",null,null,null,1000,null,null,null,null,null,null,null,{"$f":"SUM(G59:L59)","v":0}]
["Employee Benefits",null,null,null,2000,null,null,null,null,null,null,null,0]
["Purchased Services",null,null,null,3000,null,null,null,null,null,null,null,0]
["Internal Services",null,null,null,4000,null,null,null,null,null,null,null,0]
["Other Services",null,null,null,5000,null,null,null,null,null,null,null,0]
["Materials /  Supplies",null,null,null,6000,null,null,null,null,null,null,null,0]
["Capital Outlay",null,null,null,8000,null,null,null,null,null,null,null,0]
["TOTAL PROPOSED BUDGET",null,null,null,null,null,{"$f":"SUM(G59:H65)","v":0},null,{"$f":"SUM(I59:J65)","v":0},null,{"$f":"SUM(K59:L65)","v":0},null,{"$f":"SUM(M59:O65)","v":0}]
["Proposed Equipment: List items costing $5,000 or more.  Also list inventory items costing less than $5,000 "]
["that will be tracked, including I-pads, computers, cameras, etc."]
[]
[]
["Proposed Out-of State/Country Travel (destination, purpose, estimated cost, number of people):"]
[]
[]
[]
[]
[]
[]
[]
[]
[]
[]
[]
["Certifications, Policy Statements, OMEGA submission and General Questions"]
[]
[]
["Submission Statement, GEPA Statement and Section 611 Application"]

{"sheet":"Prefills","index":15,"n_rows":332,"n_cols":26,"rows_kept":332,"cut":false,"hidden":true,"merged":[]}
["Name","Code","Region","Type",null,"check X",null,"Years",null,"SL",null,"1000 - Personal Services",null,null,"Original",null,"Yes","Advisory",null,null,"App Year",null,"Submit date",null,"Name","DUNS"]
["ACCOMACK COUNTY PUBLIC SCHOOLS",1,2,"LEA",null,"X",null,"2006-2007",null,"State",null,"2000 - Employee Benefits",null,null,"Revision 1",null,"No","Parent",null,null,"2021-2022",null,"May 14, 2012",null,"ACCOMACK COUNTY PUBLIC SCHOOLS","100079292"]
["ALBEMARLE COUNTY PUBLIC SCHOOLS",2,5,"LEA",null,null,null,"2007-2008",null,"Local",null,"3000 - Purchased Services",null,null,"Revision 2",null,null,"Indiv. with a Disability",null,null,null,null,null,null,"ALBEMARLE COUNTY PUBLIC SCHOOLS","066022047"]
["ALLEGHANY COUNTY PUBLIC SCHOOLS",3,6,"LEA",null,null,null,"2008-2009",null,null,null,"4000 - Internal Services",null,null,null,null,null,"Teacher",null,null,null,null,null,null,"ALLEGHANY COUNTY PUBLIC SCHOOLS","100079326"]
["AMELIA COUNTY PUBLIC SCHOOLS",4,8,"LEA",null,null,null,"2009-2010",null,null,null,"5000 - Other Charges",null,null,null,null,null,"Consultant",null,null,null,null,null,null,"AMELIA COUNTY PUBLIC SCHOOLS","153386040"]
["AMHERST COUNTY PUBLIC SCHOOLS",5,5,"LEA",null,null,null,"2010-2011",null,null,null,"8000 – Capital Outlay/Equipment",null,null,null,null,null,"Agency/Group rep.",null,null,null,null,null,null,"AMHERST COUNTY PUBLIC SCHOOLS","966810194"]
["APPOMATTOX COUNTY PUBLIC SCHOOLS",6,8,"LEA",null,null,null,"2011-2012",null,null,null,null,null,null,null,null,null,null,null,null,null,null,null,null,"APPOMATTOX COUNTY PUBLIC SCHOOLS","100079342"]
["ARLINGTON COUNTY PUBLIC SCHOOLS",7,4,"LEA",null,null,null,"2012-2013",null,null,null,null,null,null,null,null,null,null,null,null,null,null,null,null,"ARLINGTON COUNTY PUBLIC SCHOOLS","094888831"]
["AUGUSTA COUNTY PUBLIC SCHOOLS",8,5,"LEA",null,null,null,"2013-2014",null,null,null,null,null,null,null,null,null,null,null,null,null,null,null,null,"AUGUSTA COUNTY PUBLIC SCHOOLS","184354512"]
["BATH COUNTY PUBLIC SCHOOLS",9,5,"LEA",null,null,null,"2014-2015",null,null,null,null,null,null,null,null,null,null,null,null,null,null,null,null,"BATH COUNTY PUBLIC SCHOOLS","184354520"]
["BEDFORD COUNTY PUBLIC SCHOOLS",10,5,"LEA",null,null,null,"2015-2016",null,null,null,null,null,null,null,null,null,null,null,null,null,null,null,null,"BEDFORD COUNTY PUBLIC SCHOOLS","621541259"]
["BLAND COUNTY PUBLIC SCHOOLS",11,7,"LEA",null,null,null,"2016-2017",null,null,null,null,null,null,null,null,null,null,null,null,null,null,null,null,"BLAND COUNTY PUBLIC SCHOOLS","100079391"]
["BOTETOURT COUNTY PUBLIC SCHOOLS",12,6,"LEA",null,null,null,"2017-2018",null,null,null,null,null,null,null,null,null,null,null,null,null,null,null,null,"BOTETOURT COUNTY PUBLIC SCHOOLS","012812913"]
["BRUNSWICK COUNTY PUBLIC SCHOOLS",13,8,"LEA",null,null,null,"2018-2019",null,null,null,null,null,null,null,null,null,null,null,null,null,null,null,null,"BRUNSWICK COUNTY PUBLIC SCHOOLS","030621432"]
["BUCHANAN COUNTY PUBLIC SCHOOLS",14,7,"LEA",null,null,null,"2019-2020",null,null,null,null,null,null,null,null,null,null,null,null,null,null,null,null,"BUCHANAN COUNTY PUBLIC SCHOOLS","834534690"]
["BUCKINGHAM COUNTY PUBLIC SCHOOLS",15,8,"LEA",null,null,null,"2020-2021",null,null,null,null,null,null,null,null,null,null,null,null,null,null,null,null,"BUCKINGHAM COUNTY PUBLIC SCHOOLS","100860774"]
["CAMPBELL COUNTY PUBLIC SCHOOLS",16,5,"LEA",null,null,null,"2021-2022",null,null,null,null,null,null,null,null,null,null,null,null,null,null,null,null,"CAMPBELL COUNTY PUBLIC SCHOOLS","075530837"]
["CAROLINE COUNTY PUBLIC SCHOOLS",17,3,"LEA",null,null,null,null,null,null,null,null,null,null,null,null,null,null,null,null,null,null,null,null,"CAROLINE COUNTY PUBLIC SCHOOLS","100079441"]
["CARROLL COUNTY PUBLIC SCHOOLS",18,7,"LEA",null,null,null,null,null,null,null,null,null,null,null,null,null,null,null,null,null,null,null,null,"CARROLL COUNTY PUBLIC SCHOOLS","159508431"]
["CHARLES CITY COUNTY PUBLIC SCHOOLS",19,1,"LEA",null,null,null,null,null,null,null,null,null,null,null,null,null,null,null,null,null,null,null,null,"CHARLES CITY COUNTY PUBLIC SCHOOLS","100673995"]
["CHARLOTTE COUNTY PUBLIC SCHOOLS",20,8,"LEA",null,null,null,null,null,null,null,null,null,null,null,null,null,null,null,null,null,null,null,null,"CHARLOTTE COUNTY PUBLIC SCHOOLS","012937769"]
["CHESTERFIELD COUNTY PUBLIC SCHOOLS",21,1,"LEA",null,null,null,null,null,null,null,null,null,null,null,null,null,null,null,null,null,null,null,null,"CHESTERFIELD COUNTY PUBLIC SCHOOLS","124137217"]
["CLARKE COUNTY PUBLIC SCHOOLS",22,4,"LEA",null,null,null,null,null,null,null,null,null,null,null,null,null,null,null,null,null,null,null,null,"CLARKE COUNTY PUBLIC SCHOOLS","070351523"]
["CRAIG COUNTY PUBLIC SCHOOLS",23,6,"LEA",null,null,null,null,null,null,null,null,null,null,null,null,null,null,null,null,null,null,null,null,"CRAIG COUNTY PUBLIC SCHOOLS","159509041"]
["CULPEPER COUNTY PUBLIC SCHOOLS",24,4,"LEA",null,null,null,null,null,null,null,null,null,null,null,null,null,null,null,null,null,null,null,null,"CULPEPER COUNTY PUBLIC SCHOOLS","100079524"]
["CUMBERLAND COUNTY PUBLIC SCHOOLS",25,8,"LEA",null,null,null,null,null,null,null,null,null,null,null,null,null,null,null,null,null,null,null,null,"CUMBERLAND COUNTY PUBLIC SCHOOLS","159573831"]
["DICKENSON COUNTY PUBLIC SCHOOLS",26,7,"LEA",null,null,null,null,null,null,null,null,null,null,null,null,null,null,null,null,null,null,null,null,"DICKENSON COUNTY PUBLIC SCHOOLS","627712417"]
["DINWIDDIE COUNTY PUBLIC SCHOOLS",27,1,"LEA",null,null,null,null,null,null,null,null,null,null,null,null,null,null,null,null,null,null,null,null,"DINWIDDIE COUNTY PUBLIC SCHOOLS","786959072"]
["ESSEX COUNTY PUBLIC SCHOOLS",28,3,"LEA",null,null,null,null,null,null,null,null,null,null,null,null,null,null,null,null,null,null,null,null,"ESSEX COUNTY PUBLIC SCHOOLS","800031833"]
["FAIRFAX COUNTY PUBLIC SCHOOLS",29,4,"LEA",null,null,null,null,null,null,null,null,null,null,null,null,null,null,null,null,null,null,null,null,"FAIRFAX COUNTY PUBLIC SCHOOLS","144992856"]
["FAUQUIER COUNTY PUBLIC SCHOOLS",30,4,"LEA",null,null,null,null,null,null,null,null,null,null,null,null,null,null,null,null,null,null,null,null,"FAUQUIER COUNTY PUBLIC SCHOOLS","786712471"]
["FLOYD COUNTY PUBLIC SCHOOLS",31,6,"LEA",null,null,null,null,null,null,null,null,null,null,null,null,null,null,null,null,null,null,null,null,"FLOYD COUNTY PUBLIC SCHOOLS","193074945"]
["FLUVANNA COUNTY PUBLIC SCHOOLS",32,5,"LEA",null,null,null,null,null,null,null,null,null,null,null,null,null,null,null,null,null,null,null,null,"FLUVANNA COUNTY PUBLIC SCHOOLS","785818613"]
["FRANKLIN COUNTY PUBLIC SCHOOLS",33,6,"LEA",null,null,null,null,null,null,null,null,null,null,null,null,null,null,null,null,null,null,null,null,"FRANKLIN COUNTY PUBLIC SCHOOLS","013218359"]
["FREDERICK COUNTY PUBLIC SCHOOLS",34,4,"LEA",null,null,null,null,null,null,null,null,null,null,null,null,null,null,null,null,null,null,null,null,"FREDERICK COUNTY PUBLIC SCHOOLS","100079607"]
["GILES COUNTY PUBLIC SCHOOLS",35,7,"LEA",null,null,null,null,null,null,null,null,null,null,null,null,null,null,null,null,null,null,null,null,"GILES COUNTY PUBLIC SCHOOLS","100674100"]
["GLOUCESTER COUNTY PUBLIC SCHOOLS",36,3,"LEA",null,null,null,null,null,null,null,null,null,null,null,null,null,null,null,null,null,null,null,null,"GLOUCESTER COUNTY PUBLIC SCHOOLS","159574755"]
["GOOCHLAND COUNTY PUBLIC SCHOOLS",37,1,"LEA",null,null,null,null,null,null,null,null,null,null,null,null,null,null,null,null,null,null,null,null,"GOOCHLAND COUNTY PUBLIC SCHOOLS","159575422"]
["GRAYSON COUNTY PUBLIC SCHOOLS",38,7,"LEA",null,null,null,null,null,null,null,null,null,null,null,null,null,null,null,null,null,null,null,null,"GRAYSON COUNTY PUBLIC SCHOOLS","100079664"]
["GREENE COUNTY PUBLIC SCHOOLS",39,5,"LEA",null,null,null,null,null,null,null,null,null,null,null,null,null,null,null,null,null,null,null,null,"GREENE COUNTY PUBLIC SCHOOLS","609510300"]
["GREENSVILLE COUNTY PUBLIC SCHOOLS",40,8,"LEA",null,null,null,null,null,null,null,null,null,null,null,null,null,null,null,null,null,null,null,null,"GREENSVILLE COUNTY PUBLIC SCHOOLS","123572273"]
["HALIFAX COUNTY PUBLIC SCHOOLS",41,8,"LEA",null,null,null,null,null,null,null,null,null,null,null,null,null,null,null,null,null,null,null,null,"HALIFAX COUNTY PUBLIC SCHOOLS","100079680"]
["HANOVER COUNTY PUBLIC SCHOOLS",42,1,"LEA",null,null,null,null,null,null,null,null,null,null,null,null,null,null,null,null,null,null,null,null,"HANOVER COUNTY PUBLIC SCHOOLS","013281498"]
["HENRICO COUNTY PUBLIC SCHOOLS",43,1,"LEA",null,null,null,null,null,null,null,null,null,null,null,null,null,null,null,null,null,null,null,null,"HENRICO COUNTY PUBLIC SCHOOLS","074735515"]
["HENRY COUNTY PUBLIC SCHOOLS",44,6,"LEA",null,null,null,null,null,null,null,null,null,null,null,null,null,null,null,null,null,null,null,null,"HENRY COUNTY PUBLIC SCHOOLS","193526209"]
["HIGHLAND COUNTY PUBLIC SCHOOLS",45,5,"LEA",null,null,null,null,null,null,null,null,null,null,null,null,null,null,null,null,null,null,null,null,"HIGHLAND COUNTY PUBLIC SCHOOLS","193526241"]
["ISLE OF WIGHT COUNTY PUBLIC SCHOOLS",46,2,"LEA",null,null,null,null,null,null,null,null,null,null,null,null,null,null,null,null,null,null,null,null,"ISLE OF WIGHT COUNTY PUBLIC SCHOOLS","193075090"]
["KING GEORGE COUNTY PUBLIC SCHOOLS",48,3,"LEA",null,null,null,null,null,null,null,null,null,null,null,null,null,null,null,null,null,null,null,null,"KING GEORGE COUNTY PUBLIC SCHOOLS","969207331"]
["KING AND QUEEN COUNTY PUBLIC SCHOOLS",49,3,"LEA",null,null,null,null,null,null,null,null,null,null,null,null,null,null,null,null,null,null,null,null,"KING AND QUEEN COUNTY PUBLIC SCHOOLS","093560985"]
["KING WILLIAM COUNTY PUBLIC SCHOOLS",50,3,"LEA",null,null,null,null,null,null,null,null,null,null,null,null,null,null,null,null,null,null,null,null,"KING WILLIAM COUNTY PUBLIC SCHOOLS","172687261"]
["LANCASTER COUNTY PUBLIC SCHOOLS",51,3,"LEA",null,null,null,null,null,null,null,null,null,null,null,null,null,null,null,null,null,null,null,null,"LANCASTER COUNTY PUBLIC SCHOOLS","184355154"]
["LEE COUNTY PUBLIC SCHOOLS",52,7,"LEA",null,null,null,null,null,null,null,null,null,null,null,null,null,null,null,null,null,null,null,null,"LEE COUNTY PUBLIC SCHOOLS","100674191"]
["LOUDOUN COUNTY PUBLIC SCHOOLS",53,4,"LEA",null,null,null,null,null,null,null,null,null,null,null,null,null,null,null,null,null,null,null,null,"LOUDOUN COUNTY PUBLIC SCHOOLS","188727911"]
["LOUISA COUNTY PUBLIC SCHOOLS",54,5,"LEA",null,null,null,null,null,null,null,null,null,null,null,null,null,null,null,null,null,null,null,null,"LOUISA COUNTY PUBLIC SCHOOLS","100863455"]
["LUNENBURG COUNTY PUBLIC SCHOOLS",55,8,"LEA",null,null,null,null,null,null,null,null,null,null,null,null,null,null,null,null,null,null,null,null,"LUNENBURG COUNTY PUBLIC SCHOOLS","626274760"]
["MADISON COUNTY PUBLIC SCHOOLS",56,4,"LEA",null,null,null,null,null,null,null,null,null,null,null,null,null,null,null,null,null,null,null,null,"MADISON COUNTY PUBLIC SCHOOLS","159509371"]
["MATHEWS COUNTY PUBLIC SCHOOLS",57,3,"LEA",null,null,null,null,null,null,null,null,null,null,null,null,null,null,null,null,null,null,null,null,"MATHEWS COUNTY PUBLIC SCHOOLS","013624218"]
["MECKLENBURG COUNTY PUBLIC SCHOOLS",58,8,"LEA",null,null,null,null,null,null,null,null,null,null,null,null,null,null,null,null,null,null,null,null,"MECKLENBURG COUNTY PUBLIC SCHOOLS","157688573"]
["MIDDLESEX COUNTY PUBLIC SCHOOLS",59,3,"LEA",null,null,null,null,null,null,null,null,null,null,null,null,null,null,null,null,null,null,null,null,"MIDDLESEX COUNTY PUBLIC SCHOOLS","830863192"]
["MONTGOMERY COUNTY PUBLIC SCHOOLS",60,6,"LEA",null,null,null,null,null,null,null,null,null,null,null,null,null,null,null,null,null,null,null,null,"MONTGOMERY COUNTY PUBLIC SCHOOLS","943215830"]
["NELSON COUNTY PUBLIC SCHOOLS",62,5,"LEA",null,null,null,null,null,null,null,null,null,null,null,null,null,null,null,null,null,null,null,null,"NELSON COUNTY PUBLIC SCHOOLS","013636501"]
["NEW KENT COUNTY PUBLIC SCHOOLS",63,1,"LEA",null,null,null,null,null,null,null,null,null,null,null,null,null,null,null,null,null,null,null,null,"NEW KENT COUNTY PUBLIC SCHOOLS","830724360"]
["NORTHAMPTON COUNTY PUBLIC SCHOOLS",65,2,"LEA",null,null,null,null,null,null,null,null,null,null,null,null,null,null,null,null,null,null,null,null,"NORTHAMPTON COUNTY PUBLIC SCHOOLS","100079433"]
["NORTHUMBERLAND COUNTY PUBLIC SCHOOLS",66,3,"LEA",null,null,null,null,null,null,null,null,null,null,null,null,null,null,null,null,null,null,null,null,"NORTHUMBERLAND COUNTY PUBLIC SCHOOLS","100079813"]
["NOTTOWAY COUNTY PUBLIC SCHOOLS",67,8,"LEA",null,null,null,null,null,null,null,null,null,null,null,null,null,null,null,null,null,null,null,null,"NOTTOWAY COUNTY PUBLIC SCHOOLS","013636949"]
["ORANGE COUNTY PUBLIC SCHOOLS",68,4,"LEA",null,null,null,null,null,null,null,null,null,null,null,null,null,null,null,null,null,null,null,null,"ORANGE COUNTY PUBLIC SCHOOLS","615436755"]
["PAGE COUNTY PUBLIC SCHOOLS",69,4,"LEA",null,null,null,null,null,null,null,null,null,null,null,null,null,null,null,null,null,null,null,null,"PAGE COUNTY PUBLIC SCHOOLS","021459326"]
["PATRICK COUNTY PUBLIC SCHOOLS",70,6,"LEA",null,null,null,null,null,null,null,null,null,null,null,null,null,null,null,null,null,null,null,null,"PATRICK COUNTY PUBLIC SCHOOLS","620413294"]
["PITTSYLVANIA COUNTY PUBLIC SCHOOLS",71,6,"LEA",null,null,null,null,null,null,null,null,null,null,null,null,null,null,null,null,null,null,null,null,"PITTSYLVANIA COUNTY PUBLIC SCHOOLS","100079862"]
["POWHATAN COUNTY PUBLIC SCHOOLS",72,1,"LEA",null,null,null,null,null,null,null,null,null,null,null,null,null,null,null,null,null,null,null,null,"POWHATAN COUNTY PUBLIC SCHOOLS","100079896"]
["PRINCE EDWARD COUNTY PUBLIC SCHOOLS",73,8,"LEA",null,null,null,null,null,null,null,null,null,null,null,null,null,null,null,null,null,null,null,null,"PRINCE EDWARD COUNTY PUBLIC SCHOOLS","100674332"]
["PRINCE GEORGE COUNTY PUBLIC SCHOOLS",74,1,"LEA",null,null,null,null,null,null,null,null,null,null,null,null,null,null,null,null,null,null,null,null,"PRINCE GEORGE COUNTY PUBLIC SCHOOLS","807537766"]
["PRINCE WILLIAM COUNTY PUBLIC SCHOOLS",75,4,"LEA",null,null,null,null,null,null,null,null,null,null,null,null,null,null,null,null,null,null,null,null,"PRINCE WILLIAM COUNTY PUBLIC SCHOOLS","064880511"]
["PULASKI COUNTY PUBLIC SCHOOLS",77,7,"LEA",null,null,null,null,null,null,null,null,null,null,null,null,null,null,null,null,null,null,null,null,"PULASKI COUNTY PUBLIC SCHOOLS","040831922"]
["RAPPAHANNOCK COUNTY PUBLIC SCHOOLS",78,4,"LEA",null,null,null,null,null,null,null,null,null,null,null,null,null,null,null,null,null,null,null,null,"RAPPAHANNOCK COUNTY PUBLIC SCHOOLS","100674340"]
["RICHMOND COUNTY PUBLIC SCHOOLS",79,3,"LEA",null,null,null,null,null,null,null,null,null,null,null,null,null,null,null,null,null,null,null,null,"RICHMOND COUNTY PUBLIC SCHOOLS","159572759"]
["ROANOKE COUNTY PUBLIC SCHOOLS",80,6,"LEA",null,null,null,null,null,null,null,null,null,null,null,null,null,null,null,null,null,null,null,null,"ROANOKE COUNTY PUBLIC SCHOOLS","794527564"]
["ROCKBRIDGE COUNTY PUBLIC SCHOOLS",81,5,"LEA",null,null,null,null,null,null,null,null,null,null,null,null,null,null,null,null,null,null,null,null,"ROCKBRIDGE COUNTY PUBLIC SCHOOLS","968256800"]
["ROCKINGHAM COUNTY PUBLIC SCHOOLS",82,5,"LEA",null,null,null,null,null,null,null,null,null,null,null,null,null,null,null,null,null,null,null,null,"ROCKINGHAM COUNTY PUBLIC SCHOOLS","145339255"]
["RUSSELL COUNTY PUBLIC SCHOOLS",83,7,"LEA",null,null,null,null,null,null,null,null,null,null,null,null,null,null,null,null,null,null,null,null,"RUSSELL COUNTY PUBLIC SCHOOLS","105459317"]
["SCOTT COUNTY PUBLIC SCHOOLS",84,7,"LEA",null,null,null,null,null,null,null,null,null,null,null,null,null,null,null,null,null,null,null,null,"SCOTT COUNTY PUBLIC SCHOOLS","198185951"]
["SHENANDOAH COUNTY PUBLIC SCHOOLS",85,4,"LEA",null,null,null,null,null,null,null,null,null,null,null,null,null,null,null,null,null,null,null,null,"SHENANDOAH COUNTY PUBLIC SCHOOLS","800488822"]
["SMYTH COUNTY PUBLIC SCHOOLS",86,7,"LEA",null,null,null,null,null,null,null,null,null,null,null,null,null,null,null,null,null,null,null,null,"SMYTH COUNTY PUBLIC SCHOOLS","159508803"]
["SOUTHAMPTON COUNTY PUBLIC SCHOOLS",87,2,"LEA",null,null,null,null,null,null,null,null,null,null,null,null,null,null,null,null,null,null,null,null,"SOUTHAMPTON COUNTY PUBLIC SCHOOLS","159574714"]
["SPOTSYLVANIA COUNTY PUBLIC SCHOOLS",88,3,"LEA",null,null,null,null,null,null,null,null,null,null,null,null,null,null,null,null,null,null,null,null,"SPOTSYLVANIA COUNTY PUBLIC SCHOOLS","608533142"]
["STAFFORD COUNTY PUBLIC SCHOOLS",89,3,"LEA",null,null,null,null,null,null,null,null,null,null,null,null,null,null,null,null,null,null,null,null,"STAFFORD COUNTY PUBLIC SCHOOLS","078300332"]
["SURRY COUNTY PUBLIC SCHOOLS",90,1,"LEA",null,null,null,null,null,null,null,null,null,null,null,null,null,null,null,null,null,null,null,null,"SURRY COUNTY PUBLIC SCHOOLS","159572510"]
["SUSSEX COUNTY PUBLIC SCHOOLS",91,1,"LEA",null,null,null,null,null,null,null,null,null,null,null,null,null,null,null,null,null,null,null,null,"SUSSEX COUNTY PUBLIC SCHOOLS","193515954"]
["TAZEWELL COUNTY PUBLIC SCHOOLS",92,7,"LEA",null,null,null,null,null,null,null,null,null,null,null,null,null,null,null,null,null,null,null,null,"TAZEWELL COUNTY PUBLIC SCHOOLS","076805449"]
["WARREN COUNTY PUBLIC SCHOOLS",93,4,"LEA",null,null,null,null,null,null,null,null,null,null,null,null,null,null,null,null,null,null,null,null,"WARREN COUNTY PUBLIC SCHOOLS","800488863"]
["WASHINGTON COUNTY PUBLIC SCHOOLS",94,7,"LEA",null,null,null,null,null,null,null,null,null,null,null,null,null,null,null,null,null,null,null,null,"WASHINGTON COUNTY PUBLIC SCHOOLS","112078100"]
["WESTMORELAND COUNTY PUBLIC SCHOOLS",95,3,"LEA",null,null,null,null,null,null,null,null,null,null,null,null,null,null,null,null,null,null,null,null,"WESTMORELAND COUNTY PUBLIC SCHOOLS","100674449"]
["WISE COUNTY PUBLIC SCHOOLS",96,7,"LEA",null,null,null,null,null,null,null,null,null,null,null,null,null,null,null,null,null,null,null,null,"WISE COUNTY PUBLIC SCHOOLS","100080118"]
["WYTHE COUNTY PUBLIC SCHOOLS",97,7,"LEA",null,null,null,null,null,null,null,null,null,null,null,null,null,null,null,null,null,null,null,null,"WYTHE COUNTY PUBLIC SCHOOLS","197441157"]
["YORK COUNTY PUBLIC SCHOOLS",98,2,"LEA",null,null,null,null,null,null,null,null,null,null,null,null,null,null,null,null,null,null,null,null,"YORK COUNTY PUBLIC SCHOOLS","124524281"]
["ALEXANDRIA CITY PUBLIC SCHOOLS",101,4,"LEA",null,null,null,null,null,null,null,null,null,null,null,null,null,null,null,null,null,null,null,null,"ALEXANDRIA CITY PUBLIC SCHOOLS","100079318"]
["BRISTOL CITY PUBLIC SCHOOLS",102,7,"LEA",null,null,null,null,null,null,null,null,null,null,null,null,null,null,null,null,null,null,null,null,"BRISTOL CITY PUBLIC SCHOOLS","014841845"]
["BUENA VISTA CITY PUBLIC SCHOOLS",103,5,"LEA",null,null,null,null,null,null,null,null,null,null,null,null,null,null,null,null,null,null,null,null,"BUENA VISTA CITY PUBLIC SCHOOLS","198644320"]
["CHARLOTTESVILLE CITY PUBLIC SCHOOLS",104,5,"LEA",null,null,null,null,null,null,null,null,null,null,null,null,null,null,null,null,null,null,null,null,"CHARLOTTESVILLE CITY PUBLIC SCHOOLS","053341801"]
["COLONIAL HEIGHTS CITY PUBLIC SCHOOLS",106,1,"LEA",null,null,null,null,null,null,null,null,null,null,null,null,null,null,null,null,null,null,null,null,"COLONIAL HEIGHTS CITY PUBLIC SCHOOLS","015091119"]
["COVINGTON CITY PUBLIC SCHOOLS",107,6,"LEA",null,null,null,null,null,null,null,null,null,null,null,null,null,null,null,null,null,null,null,null,"COVINGTON CITY PUBLIC SCHOOLS","100079516"]
["DANVILLE CITY PUBLIC SCHOOLS",108,6,"LEA",null,null,null,null,null,null,null,null,null,null,null,null,null,null,null,null,null,null,null,null,"DANVILLE CITY PUBLIC SCHOOLS","808961726"]
["FALLS CHURCH CITY PUBLIC SCHOOLS",109,4,"LEA",null,null,null,null,null,null,null,null,null,null,null,null,null,null,null,null,null,null,null,null,"FALLS CHURCH CITY PUBLIC SCHOOLS","126515675"]
["FREDERICKSBURG CITY PUBLIC SCHOOLS",110,3,"LEA",null,null,null,null,null,null,null,null,null,null,null,null,null,null,null,null,null,null,null,null,"FREDERICKSBURG CITY PUBLIC SCHOOLS","090924853"]
["GALAX CITY PUBLIC SCHOOLS",111,7,"LEA",null,null,null,null,null,null,null,null,null,null,null,null,null,null,null,null,null,null,null,null,"GALAX CITY PUBLIC SCHOOLS","100079631"]
["HAMPTON CITY PUBLIC SCHOOLS",112,2,"LEA",null,null,null,null,null,null,null,null,null,null,null,null,null,null,null,null,null,null,null,null,"HAMPTON CITY PUBLIC SCHOOLS","184356012"]
["HARRISONBURG CITY PUBLIC SCHOOLS",113,5,"LEA",null,null,null,null,null,null,null,null,null,null,null,null,null,null,null,null,null,null,null,null,"HARRISONBURG CITY PUBLIC SCHOOLS","100079706"]
["HOPEWELL CITY PUBLIC SCHOOLS",114,1,"LEA",null,null,null,null,null,null,null,null,null,null,null,null,null,null,null,null,null,null,null,null,"HOPEWELL CITY PUBLIC SCHOOLS","193075827"]
["LYNCHBURG CITY PUBLIC SCHOOLS",115,5,"LEA",null,null,null,null,null,null,null,null,null,null,null,null,null,null,null,null,null,null,null,null,"LYNCHBURG CITY PUBLIC SCHOOLS","120708805"]
["MARTINSVILLE CITY PUBLIC SCHOOLS",116,6,"LEA",null,null,null,null,null,null,null,null,null,null,null,null,null,null,null,null,null,null,null,null,"MARTINSVILLE CITY PUBLIC SCHOOLS","100674241"]
["NEWPORT NEWS CITY PUBLIC SCHOOLS",117,2,"LEA",null,null,null,null,null,null,null,null,null,null,null,null,null,null,null,null,null,null,null,null,"NEWPORT NEWS CITY PUBLIC SCHOOLS","193075876"]
["NORFOLK CITY PUBLIC SCHOOLS",118,2,"LEA",null,null,null,null,null,null,null,null,null,null,null,null,null,null,null,null,null,null,null,null,"NORFOLK CITY PUBLIC SCHOOLS","849679634"]
["NORTON CITY PUBLIC SCHOOLS",119,7,"LEA",null,null,null,null,null,null,null,null,null,null,null,null,null,null,null,null,null,null,null,null,"NORTON CITY PUBLIC SCHOOLS","198311615"]
["PETERSBURG CITY PUBLIC SCHOOLS",120,1,"LEA",null,null,null,null,null,null,null,null,null,null,null,null,null,null,null,null,null,null,null,null,"PETERSBURG CITY PUBLIC SCHOOLS","196758866"]
["PORTSMOUTH CITY PUBLIC SCHOOLS",121,2,"LEA",null,null,null,null,null,null,null,null,null,null,null,null,null,null,null,null,null,null,null,null,"PORTSMOUTH CITY PUBLIC SCHOOLS","877552505"]
["RADFORD CITY PUBLIC SCHOOLS",122,7,"LEA",null,null,null,null,null,null,null,null,null,null,null,null,null,null,null,null,null,null,null,null,"RADFORD CITY PUBLIC SCHOOLS","838824944"]
["RICHMOND CITY PUBLIC SCHOOLS",123,1,"LEA",null,null,null,null,null,null,null,null,null,null,null,null,null,null,null,null,null,null,null,null,"RICHMOND CITY PUBLIC SCHOOLS","036871838"]
["ROANOKE CITY PUBLIC SCHOOLS",124,6,"LEA",null,null,null,null,null,null,null,null,null,null,null,null,null,null,null,null,null,null,null,null,"ROANOKE CITY PUBLIC SCHOOLS","878934835"]
["STAUNTON CITY PUBLIC SCHOOLS",126,5,"LEA",null,null,null,null,null,null,null,null,null,null,null,null,null,null,null,null,null,null,null,null,"STAUNTON CITY PUBLIC SCHOOLS","198636953"]
["SUFFOLK CITY PUBLIC SCHOOLS",127,2,"LEA",null,null,null,null,null,null,null,null,null,null,null,null,null,null,null,null,null,null,null,null,"SUFFOLK CITY PUBLIC SCHOOLS","787799832"]
["VA BEACH CITY PUBLIC SCHOOLS",128,2,"LEA",null,null,null,null,null,null,null,null,null,null,null,null,null,null,null,null,null,null,null,null,"VA BEACH CITY PUBLIC SCHOOLS","827234121"]
["WAYNESBORO CITY PUBLIC SCHOOLS",130,5,"LEA",null,null,null,null,null,null,null,null,null,null,null,null,null,null,null,null,null,null,null,null,"WAYNESBORO CITY PUBLIC SCHOOLS","017048950"]
["WILLIAMSBURG CITY PUBLIC SCHOOLS",131,2,"LEA",null,null,null,null,null,null,null,null,null,null,null,null,null,null,null,null,null,null,null,null,"WILLIAMSBURG CITY PUBLIC SCHOOLS","829408181"]
["WINCHESTER CITY PUBLIC SCHOOLS",132,4,"LEA",null,null,null,null,null,null,null,null,null,null,null,null,null,null,null,null,null,null,null,null,"WINCHESTER CITY PUBLIC SCHOOLS","100595917"]
["FAIRFAX CITY PUBLIC SCHOOLS",134,4,"LEA",null,null,null,null,null,null,null,null,null,null,null,null,null,null,null,null,null,null,null,null,"FAIRFAX CITY PUBLIC SCHOOLS","144992856"]
["FRANKLIN CITY PUBLIC SCHOOLS",135,2,"LEA",null,null,null,null,null,null,null,null,null,null,null,null,null,null,null,null,null,null,null,null,"FRANKLIN CITY PUBLIC SCHOOLS","623011843"]
["CHESAPEAKE CITY PUBLIC SCHOOLS",136,2,"LEA",null,null,null,null,null,null,null,null,null,null,null,null,null,null,null,null,null,null,null,null,"CHESAPEAKE CITY PUBLIC SCHOOLS","193075736"]
["LEXINGTON CITY PUBLIC SCHOOLS",137,5,"LEA",null,null,null,null,null,null,null,null,null,null,null,null,null,null,null,null,null,null,null,null,"LEXINGTON CITY PUBLIC SCHOOLS","100674209"]
["SALEM CITY PUBLIC SCHOOLS",139,6,"LEA",null,null,null,null,null,null,null,null,null,null,null,null,null,null,null,null,null,null,null,null,"SALEM CITY PUBLIC SCHOOLS","100079995"]
["BEDFORD CITY PUBLIC SCHOOLS",140,5,"LEA",null,null,null,null,null,null,null,null,null,null,null,null,null,null,null,null,null,null,null,null,"BEDFORD CITY PUBLIC SCHOOLS","621541259"]
["POQUOSON CITY PUBLIC SCHOOLS",142,2,"LEA",null,null,null,null,null,null,null,null,null,null,null,null,null,null,null,null,null,null,null,null,"POQUOSON CITY PUBLIC SCHOOLS","193075694"]
["MANASSAS CITY PUBLIC SCHOOLS",143,4,"LEA",null,null,null,null,null,null,null,null,null,null,null,null,null,null,null,null,null,null,null,null,"MANASSAS CITY PUBLIC SCHOOLS","609668413"]
["MANASSAS PARK CITY PUBLIC SCHOOLS",144,4,"LEA",null,null,null,null,null,null,null,null,null,null,null,null,null,null,null,null,null,null,null,null,"MANASSAS PARK CITY PUBLIC SCHOOLS","184355352"]
["COLONIAL BEACH TOWN PUBLIC SCHOOLS",202,3,"LEA",null,null,null,null,null,null,null,null,null,null,null,null,null,null,null,null,null,null,null,null,"COLONIAL BEACH TOWN PUBLIC SCHOOLS","193501186"]
["WEST POINT TOWN PUBLIC SCHOOLS",207,3,"LEA",null,null,null,null,null,null,null,null,null,null,null,null,null,null,null,null,null,null,null,null,"WEST POINT TOWN PUBLIC SCHOOLS"," 942550047"]
["VSDB-STAUNTON",218,0,"SOP",null,null,null,null,null,null,null,null,null,null,null,null,null,null,null,null,null,null,null,null,"VSDB-STAUNTON","036992907"]
["CHKD - HOSPITAL EDUCATION PROGRAM",564,0,"SOP",null,null,null,null,null,null,null,null,null,null,null,null,null,null,null,null,null,null,null,null,"CHKD - HOSPITAL EDUCATION PROGRAM"]
["MCV - HOSPITAL EDUCATION PROGAM",873,0,"SOP",null,null,null,null,null,null,null,null,null,null,null,null,null,null,null,null,null,null,null,null,"MCV - HOSPITAL EDUCATION PROGAM"]
["UVA - HOSPITAL EDUCATION PROGRAM",879,0,"SOP",null,null,null,null,null,null,null,null,null,null,null,null,null,null,null,null,null,null,null,null,"UVA - HOSPITAL EDUCATION PROGRAM"]
["VA DEPT OF CORRECTIONAL EDUCATION",900,0,"SOP",null,null,null,null,null,null,null,null,null,null,null,null,null,null,null,null,null,null,null,null,"VA DEPT OF CORRECTIONAL EDUCATION"]
["DEPARTMENT OF JUVENILE JUSTICE",917,1,"SOP",null,null,null,null,null,null,null,null,null,null,null,null,null,null,null,null,null,null,null,null,"DEPARTMENT OF JUVENILE JUSTICE"]
["CENTRAL STATE HOSPITAL",920,0,"SOP",null,null,null,null,null,null,null,null,null,null,null,null,null,null,null,null,null,null,null,null,"CENTRAL STATE HOSPITAL"]
["DEPARTMENT OF CORRECTIONS",930,1,"SOP",null,null,null,null,null,null,null,null,null,null,null,null,null,null,null,null,null,null,null,null,"DEPARTMENT OF CORRECTIONS"]
["EASTERN STATE HOSPITAL",921,0,"SOP",null,null,null,null,null,null,null,null,null,null,null,null,null,null,null,null,null,null,null,null,"EASTERN STATE HOSPITAL"]
["SW VA MENTAL HEALTH INSTITUTE",922,0,"SOP",null,null,null,null,null,null,null,null,null,null,null,null,null,null,null,null,null,null,null,null,"SW VA MENTAL HEALTH INSTITUTE"]
["WESTERN STATE HOSPITAL",924,0,"SOP",null,null,null,null,null,null,null,null,null,null,null,null,null,null,null,null,null,null,null,null,"WESTERN STATE HOSPITAL"]
["CENTRAL VA TRAINING CENTER",941,0,"SOP",null,null,null,null,null,null,null,null,null,null,null,null,null,null,null,null,null,null,null,null,"CENTRAL VA TRAINING CENTER"]
["SOUTHSIDE VA TRAINING CENTER",943,0,"SOP",null,null,null,null,null,null,null,null,null,null,null,null,null,null,null,null,null,null,null,null,"SOUTHSIDE VA TRAINING CENTER"]
["WOODROW WILSON REHAB CENTER",947,0,"SOP",null,null,null,null,null,null,null,null,null,null,null,null,null,null,null,null,null,null,null,null,"WOODROW WILSON REHAB CENTER"]
["VA TREATMENT CENTER",948,0,"SOP",null,null,null,null,null,null,null,null,null,null,null,null,null,null,null,null,null,null,null,null,"VA TREATMENT CENTER"]
["SOUTHEASTERN VA TRAINING CENTER",950,0,"SOP",null,null,null,null,null,null,null,null,null,null,null,null,null,null,null,null,null,null,null,null,"SOUTHEASTERN VA TRAINING CENTER"]
["SOUTHWESTERN VA TRAINING CENTER",951,0,"SOP",null,null,null,null,null,null,null,null,null,null,null,null,null,null,null,null,null,null,null,null,"SOUTHWESTERN VA TRAINING CENTER"]
["COMMONWEALTH CENTER FOR CHILDREN AND ADOLESCENTS",959,0,"SOP",null,null,null,null,null,null,null,null,null,null,null,null,null,null,null,null,null,null,null,null,"COMMONWEALTH CENTER FOR CHILDREN AND ADOLESCENTS"]
[]
[]
[]
[]
[]
[]
[]
[]
[]
[]
[]
[]
[]
[]
[]
[]
[]
[]
[]
[]
[]
[]
[]
[]
[]
[]
[]
[]
[]
[]
[]
[]
[]
[]
[]
[]
[]
[]
[]
[]
[]
[]
[]
[]
[]
[]
[]
[]
[]
[]
[]
[]
[]
[]
[]
[]
[]
[]
[]
[]
[]
[]
[]
[]
[]
[]
[]
[]
[]
[]
[]
[]
[]
[]
[]
[]
[]
[]
[]
[]
[]
[]
[]
[]
[]
[]
[]
[]
[]
[]
[]
[]
[]
[]
[]
[]
[]
[]
[]
[]
[]
[]
[]
[]
[]
[]
[]
[]
[]
[]
[]
[]
[]
[]
[]
[]
[]
[]
[]
[]
[]
[]
[]
[]
[]
[]
[]
[]
[]
[]
[]
[]
[]
[]
[]
[]
[]
[]
[]
[]
[]
[]
[]
[]
[]
[]
[]
[]
[]
[]
[]
[]
[]
[]
[]
[]
[]
[]
[]
[]
[]
[]
[]
[]
[]
[]
[]
[]
[]
[]
[]
[]
[]
[]
[]
[]
[]
[]
[null,null,null,null,null,null,null,null,null,null,null,null,null,null,null,null,null,null,null,null,null,null,null,null,null,74901984]